Workbook

Sheet US Map (hidden)

Sheet LinkData (hidden)
A1: Team | B1: Team Members | C1: Product | D1: Sales Month | E1: State | F1: Region | G1: Login Hours | H1: Total Talk Time | I1: Total Hold Time | J1: Sales | K1: Sales Per Hour | L1: Revenue | M1: Revenue Per Hour | N1: Calls | O1: Excellent Calls | P1: Good Calls | Q1: Fair Calls | R1: Poor Calls | S1: Total Calls | T1: CSAT% (Customer Satisfaction)
A2: Team A | B2: Quagmire | C2: Product 1 | D2: 2014-06-01 | E2: California | F2: Far West | G2: 7.3 | H2: 6.3 | I2: =G2-H2 -> 1 | J2: 18 | K2: =J2/G2 -> 2.465753425 | L2: 612 | M2: =L2/G2 -> 83.83561644 | N2: 316 | O2: 28 | P2: 33 | Q2: 34 | R2: 11 | S2: =SUM(N2:R2) -> 422 | T2: =SUM(O2:P2)/S2 -> 0.144549763
A3: Team A | B3: Nola | C3: Product 2 | D3: 2014-07-01 | E3: California | F3: Far West | G3: 8.3 | H3: 7.3 | I3: =G3-H3 -> 1 | J3: 21 | K3: =J3/G3 -> 2.530120482 | L3: 714 | M3: =L3/G3 -> 86.02409639 | N3: 327 | O3: 25 | P3: 36 | Q3: 33 | R3: 12 | S3: =SUM(N3:R3) -> 433 | T3: =SUM(O3:P3)/S3 -> 0.1408775982
A4: Team A | B4: Abel | C4: Product 1 | D4: 2014-08-01 | E4: California | F4: Far West | G4: 8.3 | H4: 7.9 | I4: 0.4 | J4: 15.5 | K4: 1.86746988 | L4: 725.4 | M4: 87.39759036 | N4: 325.1 | O4: 26.6 | P4: 36.4 | Q4: 34.9 | R4: 10.8 | S4: 433.8 | T4: 0.1452282158
A5: Team A | B5: Angel | C5: Product 2 | D5: 2014-09-01 | E5: California | F5: Far West | G5: 7 | H5: 6.4 | I5: 0.6 | J5: 22.7 | K5: 3.242857143 | L5: 544.9 | M5: 77.84285714 | N5: 399.9 | O5: 26.6 | P5: 34.5 | Q5: 34.6 | R5: 10.6 | S5: 506.2 | T5: 0.1207032793
A6: Team A | B6: Quin | C6: Product 2 | D6: 2014-06-01 | E6: Nevada | F6: Far West | G6: 8.3 | H6: 7.3 | I6: 1 | J6: 16 | K6: 1.927710843 | L6: 544 | M6: 65.54216867 | N6: 395 | O6: 23 | P6: 35 | Q6: 37 | R6: 12 | S6: 502 | T6: 0.1155378486
A7: Team A | B7: Aileen | C7: Product 1 | D7: 2014-07-01 | E7: Nevada | F7: Far West | G7: 7.6 | H7: 6.6 | I7: 1 | J7: 19 | K7: 2.5 | L7: 646 | M7: 85 | N7: 324 | O7: 22 | P7: 36 | Q7: 39 | R7: 14 | S7: 435 | T7: 0.1333333333
A8: Team A | B8: Alexis | C8: Product 1 | D8: 2014-08-01 | E8: Nevada | F8: Far West | G8: 7.4 | H8: 6.8 | I8: 0.6 | J8: 16.7 | K8: 2.256756757 | L8: 735.5 | M8: 99.39189189 | N8: 340.1 | O8: 20.7 | P8: 38.1 | Q8: 34.7 | R8: 11.7 | S8: 445.3 | T8: 0.1320458118
A9: Team A | B9: Aron | C9: Product 2 | D9: 2014-09-01 | E9: Nevada | F9: Far West | G9: 21 | H9: 6.6 | I9: 14.4 | J9: 21 | K9: 1 | L9: 635.6 | M9: 30.26666667 | N9: 337.2 | O9: 27.6 | P9: 35.9 | Q9: 35.7 | R9: 13.3 | S9: 449.7 | T9: 0.1412052479
A10: Team A | B10: Constance | C10: Product 1 | D10: 2014-06-01 | E10: Oregon | F10: Far West | G10: 8 | H10: 7 | I10: 1 | J10: 16 | K10: 2 | L10: 544 | M10: 68 | N10: 310 | O10: 29 | P10: 32 | Q10: 30 | R10: 11 | S10: 412 | T10: 0.1480582524
A11: Team A | B11: Melodie | C11: Product 1 | D11: 2014-07-01 | E11: Oregon | F11: Far West | G11: 7 | H11: 6 | I11: 1 | J11: 23 | K11: 3.285714286 | L11: 782 | M11: 111.7142857 | N11: 456 | O11: 27 | P11: 38 | Q11: 40 | R11: 13 | S11: 574 | T11: 0.1132404181
A12: Team A | B12: Alonzo | C12: Product 1 | D12: 2014-08-01 | E12: Oregon | F12: Far West | G12: 7.9 | H12: 7.5 | I12: 0.4 | J12: 21.4 | K12: 2.708860759 | L12: 676 | M12: 85.56962025 | N12: 392 | O12: 26.4 | P12: 30.2 | Q12: 30.8 | R12: 12 | S12: 491.4 | T12: 0.1151811152
A13: Team A | B13: Augustine | C13: Product 2 | D13: 2014-09-01 | E13: Oregon | F13: Far West | G13: 7.4 | H13: 6.9 | I13: 0.5 | J13: 23.4 | K13: 3.162162162 | L13: 687 | M13: 92.83783784 | N13: 341.1 | O13: 22.3 | P13: 38.6 | Q13: 30.8 | R13: 11.2 | S13: 444 | T13: 0.1371621622
A14: Team A | B14: Rhoda | C14: Product 1 | D14: 2014-06-01 | E14: Washington | F14: Far West | G14: 8 | H14: 7 | I14: 1 | J14: 21 | K14: 2.625 | L14: 714 | M14: 89.25 | N14: 339 | O14: 25 | P14: 32 | Q14: 31 | R14: 14 | S14: 441 | T14: 0.1292517007
A15: Team A | B15: Zia | C15: Product 2 | D15: 2014-07-01 | E15: Washington | F15: Far West | G15: 7.5 | H15: 6.5 | I15: 1 | J15: 25 | K15: 3.333333333 | L15: 850 | M15: 113.3333333 | N15: 353 | O15: 22 | P15: 31 | Q15: 37 | R15: 13 | S15: 456 | T15: 0.1162280702
A16: Team A | B16: Anderson | C16: Product 1 | D16: 2014-08-01 | E16: Washington | F16: Far West | G16: 8.1 | H16: 7.7 | I16: 0.4 | J16: 20.3 | K16: 2.50617284 | L16: 600 | M16: 74.07407407 | N16: 352.4 | O16: 29.1 | P16: 36.5 | Q16: 36.1 | R16: 12.3 | S16: 466.4 | T16: 0.140651801
A17: Team A | B17: Basil | C17: Product 2 | D17: 2014-09-01 | E17: Washington | F17: Far West | G17: 8.3 | H17: 7.5 | I17: 0.8 | J17: 17.3 | K17: 2.084337349 | L17: 705.6 | M17: 85.01204819 | N17: 385.8 | O17: 24.2 | P17: 33.4 | Q17: 40 | R17: 10 | S17: 493.4 | T17: 0.1167409809
A18: Team B | B18: Katelyn | C18: Product 1 | D18: 2014-06-01 | E18: Illinois | F18: Great Lakes | G18: 7 | H18: 6 | I18: 1 | J18: 21 | K18: 3 | L18: 714 | M18: 102 | N18: 322 | O18: 24 | P18: 30 | Q18: 32 | R18: 14 | S18: 422 | T18: 0.1279620853
A19: Team B | B19: Amanda | C19: Product 2 | D19: 2014-07-01 | E19: Illinois | F19: Great Lakes | G19: 7.6 | H19: 6.6 | I19: 1 | J19: 17 | K19: 2.236842105 | L19: 578 | M19: 76.05263158 | N19: 347 | O19: 20 | P19: 40 | Q19: 35 | R19: 15 | S19: 457 | T19: 0.1312910284
A20: Team B | B20: Adolph | C20: Product 1 | D20: 2014-08-01 | E20: Illinois | F20: Great Lakes | G20: 8.1 | H20: 7.6 | I20: 0.5 | J20: 18.1 | K20: 2.234567901 | L20: 687.8 | M20: 84.91358025 | N20: 365.1 | O20: 22.3 | P20: 34.9 | Q20: 34.2 | R20: 12.2 | S20: 468.7 | T20: 0.1220396842
A21: Team B | B21: Antone | C21: Product 2 | D21: 2014-09-01 | E21: Illinois | F21: Great Lakes | G21: 7 | H21: 6.6 | I21: 0.4 | J21: 23.2 | K21: 3.314285714 | L21: 574 | M21: 82 | N21: 363.8 | O21: 21.8 | P21: 39.8 | Q21: 30.5 | R21: 13.2 | S21: 469.1 | T21: 0.1313152846
A22: Team B | B22: Dana | C22: Product 1 | D22: 2014-06-01 | E22: Indiana | F22: Great Lakes | G22: 7.6 | H22: 6.6 | I22: 1 | J22: 22 | K22: 2.894736842 | L22: 748 | M22: 98.42105263 | N22: 396 | O22: 27 | P22: 30 | Q22: 38 | R22: 15 | S22: 506 | T22: 0.1126482213
A23: Team B | B23: Stacy | C23: Product 2 | D23: 2014-07-01 | E23: Indiana | F23: Great Lakes | G23: 7.9 | H23: 6.9 | I23: 1 | J23: 25 | K23: 3.164556962 | L23: 850 | M23: 107.5949367 | N23: 383 | O23: 30 | P23: 30 | Q23: 36 | R23: 10 | S23: 489 | T23: 0.1226993865
A24: Team B | B24: Adrian | C24: Product 1 | D24: 2014-08-01 | E24: Indiana | F24: Great Lakes | G24: 7.1 | H24: 6.4 | I24: 0.7 | J24: 15.4 | K24: 2.169014085 | L24: 738.8 | M24: 104.056338 | N24: 340.8 | O24: 23.3 | P24: 36.5 | Q24: 38 | R24: 14 | S24: 452.6 | T24: 0.1321254971
A25: Team B | B25: Antonia | C25: Product 2 | D25: 2014-09-01 | E25: Indiana | F25: Great Lakes | G25: 7.2 | H25: 6.5 | I25: 0.7 | J25: 18.4 | K25: 2.555555556 | L25: 656.5 | M25: 91.18055556 | N25: 365.6 | O25: 23.6 | P25: 34.4 | Q25: 33.7 | R25: 10.4 | S25: 467.7 | T25: 0.1240111182
A26: Team B | B26: Winifred | C26: Product 2 | D26: 2014-06-01 | E26: Michigan | F26: Great Lakes | G26: 7.6 | H26: 6.6 | I26: 1 | J26: 18 | K26: 2.368421053 | L26: 612 | M26: 80.52631579 | N26: 327 | O26: 23 | P26: 30 | Q26: 33 | R26: 11 | S26: 424 | T26: 0.125
A27: Team B | B27: Rafael | C27: Product 2 | D27: 2014-07-01 | E27: Michigan | F27: Great Lakes | G27: 7.3 | H27: 6.3 | I27: 1 | J27: 15 | K27: 2.054794521 | L27: 510 | M27: 69.8630137 | N27: 316 | O27: 29 | P27: 35 | Q27: 33 | R27: 10 | S27: 423 | T27: 0.1513002364
A28: Team B | B28: Alden | C28: Product 1 | D28: 2014-08-01 | E28: Michigan | F28: Great Lakes | G28: 8.1 | H28: 7.6 | I28: 0.5 | J28: 15.9 | K28: 1.962962963 | L28: 606.1 | M28: 74.82716049 | N28: 392.7 | O28: 27.7 | P28: 34.6 | Q28: 30.2 | R28: 12.2 | S28: 497.4 | T28: 0.1252513068
A29: Team B | B29: Arlie | C29: Product 2 | D29: 2014-09-01 | E29: Michigan | F29: Great Lakes | G29: 8.3 | H29: 8.1 | I29: 0.2 | J29: 17.2 | K29: 2.072289157 | L29: 693.1 | M29: 83.5060241 | N29: 309 | O29: 21.1 | P29: 30.8 | Q29: 32.9 | R29: 14.9 | S29: 408.7 | T29: 0.1269880108
A30: Team B | B30: Jena | C30: Product 2 | D30: 2014-06-01 | E30: Ohio | F30: Great Lakes | G30: 8.3 | H30: 7.3 | I30: 1 | J30: 22 | K30: 2.65060241 | L30: 748 | M30: 90.12048193 | N30: 386 | O30: 20 | P30: 39 | Q30: 38 | R30: 12 | S30: 495 | T30: 0.1191919192
A31: Team B | B31: Nomlanga | C31: Product 1 | D31: 2014-07-01 | E31: Ohio | F31: Great Lakes | G31: 8 | H31: 7 | I31: 1 | J31: 23 | K31: 2.875 | L31: 782 | M31: 97.75 | N31: 368 | O31: 26 | P31: 31 | Q31: 38 | R31: 11 | S31: 474 | T31: 0.1202531646
A32: Team B | B32: Allen | C32: Product 1 | D32: 2014-08-01 | E32: Ohio | F32: Great Lakes | G32: 7.5 | H32: 7.1 | I32: 0.4 | J32: 22.1 | K32: 2.946666667 | L32: 760.4 | M32: 101.3866667 | N32: 330.6 | O32: 21.1 | P32: 34.7 | Q32: 30.4 | R32: 15 | S32: 431.8 | T32: 0.1292264937
A33: Team B | B33: Aubrey | C33: Product 2 | D33: 2014-09-01 | E33: Ohio | F33: Great Lakes | G33: 7.6 | H33: 6.8 | I33: 0.8 | J33: 19.9 | K33: 2.618421053 | L33: 836.6 | M33: 110.0789474 | N33: 375.9 | O33: 22.3 | P33: 34.1 | Q33: 35.5 | R33: 12.3 | S33: 480.1 | T33: 0.1174755259
A34: Team B | B34: Phyllis | C34: Product 1 | D34: 2014-06-01 | E34: Wisconsin | F34: Great Lakes | G34: 7 | H34: 6 | I34: 1 | J34: 17 | K34: 2.428571429 | L34: 578 | M34: 82.57142857 | N34: 334 | O34: 29 | P34: 31 | Q34: 30 | R34: 11 | S34: 435 | T34: 0.1379310345
A35: Team B | B35: Tatum | C35: Product 2 | D35: 2014-07-01 | E35: Wisconsin | F35: Great Lakes | G35: 7.6 | H35: 6.6 | I35: 1 | J35: 18 | K35: 2.368421053 | L35: 612 | M35: 80.52631579 | N35: 370 | O35: 22 | P35: 33 | Q35: 32 | R35: 15 | S35: 472 | T35: 0.1165254237
A36: Team B | B36: Andrea | C36: Product 1 | D36: 2014-08-01 | E36: Wisconsin | F36: Great Lakes | G36: 7.8 | H36: 7.5 | I36: 0.3 | J36: 17.7 | K36: 2.269230769 | L36: 584.4 | M36: 74.92307692 | N36: 341.7 | O36: 21.6 | P36: 32 | Q36: 35.7 | R36: 11.1 | S36: 442.1 | T36: 0.1212395386
A37: Team B | B37: Ben | C37: Product 2 | D37: 2014-09-01 | E37: Wisconsin | F37: Great Lakes | G37: 7 | H37: 6.5 | I37: 0.5 | J37: 23.3 | K37: 3.328571429 | L37: 774.8 | M37: 110.6857143 | N37: 344.1 | O37: 24.7 | P37: 30.7 | Q37: 38.3 | R37: 12.9 | S37: 450.7 | T37: 0.1229199024
A38: Team C | B38: Lois | C38: Product 1 | D38: 2014-06-01 | E38: Delaware | F38: Mideast | G38: 7.5 | H38: 6.5 | I38: 1 | J38: 16 | K38: 2.133333333 | L38: 544 | M38: 72.53333333 | N38: 327 | O38: 28 | P38: 33 | Q38: 37 | R38: 12 | S38: 437 | T38: 0.1395881007
A39: Team C | B39: Renee | C39: Product 2 | D39: 2014-07-01 | E39: Delaware | F39: Mideast | G39: 7 | H39: 6 | I39: 1 | J39: 23 | K39: 3.285714286 | L39: 782 | M39: 111.7142857 | N39: 397 | O39: 23 | P39: 32 | Q39: 33 | R39: 13 | S39: 498 | T39: 0.1104417671
A40: Team C | B40: Adalberto | C40: Product 1 | D40: 2014-08-01 | E40: Delaware | F40: Mideast | G40: 7.1 | H40: 6.3 | I40: 0.8 | J40: 21 | K40: 2.957746479 | L40: 699 | M40: 98.45070423 | N40: 367.7 | O40: 28.9 | P40: 31.9 | Q40: 39.3 | R40: 11.2 | S40: 479 | T40: 0.1269311065
A41: Team C | B41: Anthony | C41: Product 2 | D41: 2014-09-01 | E41: Delaware | F41: Mideast | G41: 7.5 | H41: 7.2 | I41: 0.3 | J41: 20.8 | K41: 2.773333333 | L41: 799.1 | M41: 106.5466667 | N41: 371.5 | O41: 20.3 | P41: 35.1 | Q41: 30.8 | R41: 10.2 | S41: 467.9 | T41: 0.1184013678
A42: Team C | B42: Amber | C42: Product 2 | D42: 2014-06-01 | E42: Maryland | F42: Mideast | G42: 7.5 | H42: 6.5 | I42: 1 | J42: 19 | K42: 2.533333333 | L42: 646 | M42: 86.13333333 | N42: 323 | O42: 20 | P42: 35 | Q42: 34 | R42: 15 | S42: 427 | T42: 0.1288056206
A43: Team C | B43: Portia | C43: Product 2 | D43: 2014-07-01 | E43: Maryland | F43: Mideast | G43: 7.6 | H43: 6.6 | I43: 1 | J43: 16 | K43: 2.105263158 | L43: 544 | M43: 71.57894737 | N43: 396 | O43: 25 | P43: 39 | Q43: 37 | R43: 11 | S43: 508 | T43: 0.125984252
A44: Team C | B44: Albert | C44: Product 1 | D44: 2014-08-01 | E44: Maryland | F44: Mideast | G44: 8.1 | H44: 7.9 | I44: 0.2 | J44: 24.8 | K44: 3.061728395 | L44: 636.3 | M44: 78.55555556 | N44: 397.2 | O44: 25.5 | P44: 32 | Q44: 34.7 | R44: 11.9 | S44: 501.3 | T44: 0.1147017754
A45: Team C | B45: Ariel | C45: Product 2 | D45: 2014-09-01 | E45: Maryland | F45: Mideast | G45: 8.1 | H45: 7.6 | I45: 0.5 | J45: 15.8 | K45: 1.950617284 | L45: 672.6 | M45: 83.03703704 | N45: 375.7 | O45: 20.1 | P45: 31.2 | Q45: 35.6 | R45: 13.6 | S45: 476.2 | T45: 0.1077278454
A46: Team C | B46: Pamela | C46: Product 2 | D46: 2014-06-01 | E46: New Jersey | F46: Mideast | G46: 7.5 | H46: 6.5 | I46: 1 | J46: 22 | K46: 2.933333333 | L46: 748 | M46: 99.73333333 | N46: 326 | O46: 29 | P46: 33 | Q46: 38 | R46: 13 | S46: 439 | T46: 0.1412300683
A47: Team C | B47: Madeline | C47: Product 1 | D47: 2014-07-01 | E47: New Jersey | F47: Mideast | G47: 7 | H47: 6 | I47: 1 | J47: 23 | K47: 3.285714286 | L47: 782 | M47: 111.7142857 | N47: 368 | O47: 30 | P47: 40 | Q47: 38 | R47: 15 | S47: 491 | T47: 0.1425661914
A48: Team C | B48: Alfonzo | C48: Product 1 | D48: 2014-08-01 | E48: New Jersey | F48: Mideast | G48: 8.2 | H48: 7.7 | I48: 0.5 | J48: 19 | K48: 2.317073171 | L48: 751.2 | M48: 91.6097561 | N48: 317.1 | O48: 29.3 | P48: 31.5 | Q48: 33.2 | R48: 10.9 | S48: 422 | T48: 0.1440758294
A49: Team C | B49: Art | C49: Product 2 | D49: 2014-09-01 | E49: New Jersey | F49: Mideast | G49: 8.1 | H49: 7.5 | I49: 0.6 | J49: 20.2 | K49: 2.49382716 | L49: 620.2 | M49: 76.56790123 | N49: 326.3 | O49: 27.4 | P49: 30.9 | Q49: 30 | R49: 10.9 | S49: 425.5 | T49: 0.1370152761
A50: Team C | B50: Zenia | C50: Product 2 | D50: 2014-06-01 | E50: New York | F50: Mideast | G50: 7.6 | H50: 6.6 | I50: 1 | J50: 21 | K50: 2.763157895 | L50: 714 | M50: 93.94736842 | N50: 316 | O50: 28 | P50: 36 | Q50: 35 | R50: 11 | S50: 426 | T50: 0.1502347418
A51: Team C | B51: Britanney | C51: Product 1 | D51: 2014-07-01 | E51: New York | F51: Mideast | G51: 7.9 | H51: 6.9 | I51: 1 | J51: 15 | K51: 1.898734177 | L51: 510 | M51: 64.55696203 | N51: 357 | O51: 27 | P51: 30 | Q51: 31 | R51: 12 | S51: 457 | T51: 0.124726477
A52: Team C | B52: Alfredo | C52: Product 1 | D52: 2014-08-01 | E52: New York | F52: Mideast | G52: 7.2 | H52: 6.6 | I52: 0.6 | J52: 15.8 | K52: 2.194444444 | L52: 753.7 | M52: 104.6805556 | N52: 335.7 | O52: 27.4 | P52: 31.8 | Q52: 36.1 | R52: 10.3 | S52: 441.3 | T52: 0.1341491049
A53: Team C | B53: Arturo | C53: Product 2 | D53: 2014-09-01 | E53: New York | F53: Mideast | G53: 7.9 | H53: 7.7 | I53: 0.2 | J53: 18 | K53: 2.278481013 | L53: 785.9 | M53: 99.48101266 | N53: 321.4 | O53: 28.9 | P53: 35.3 | Q53: 34.2 | R53: 10.7 | S53: 430.5 | T53: 0.1491289199
A54: Team C | B54: Darryl | C54: Product 1 | D54: 2014-06-01 | E54: Pennsylvania | F54: Mideast | G54: 7.5 | H54: 6.5 | I54: 1 | J54: 20 | K54: 2.666666667 | L54: 680 | M54: 90.66666667 | N54: 394 | O54: 30 | P54: 38 | Q54: 35 | R54: 13 | S54: 510 | T54: 0.1333333333
A55: Team C | B55: Jeremy | C55: Product 1 | D55: 2014-07-01 | E55: Pennsylvania | F55: Mideast | G55: 7.6 | H55: 6.6 | I55: 1 | J55: 15 | K55: 1.973684211 | L55: 510 | M55: 67.10526316 | N55: 384 | O55: 21 | P55: 37 | Q55: 39 | R55: 11 | S55: 492 | T55: 0.1178861789
A56: Team C | B56: Alphonse | C56: Product 1 | D56: 2014-08-01 | E56: Pennsylvania | F56: Mideast | G56: 7.9 | H56: 7.2 | I56: 0.7 | J56: 19.4 | K56: 2.455696203 | L56: 845.2 | M56: 106.9873418 | N56: 393.4 | O56: 21.9 | P56: 36.5 | Q56: 33.4 | R56: 14.6 | S56: 499.8 | T56: 0.1168467387
A57: Team C | B57: Augustus | C57: Product 2 | D57: 2014-09-01 | E57: Pennsylvania | F57: Mideast | G57: 7.6 | H57: 7.2 | I57: 0.4 | J57: 23.6 | K57: 3.105263158 | L57: 621.7 | M57: 81.80263158 | N57: 389.9 | O57: 21.9 | P57: 38.2 | Q57: 36.2 | R57: 12.7 | S57: 498.9 | T57: 0.1204650231
A58: Team D | B58: Dara | C58: Product 1 | D58: 2014-06-01 | E58: Connecticut | F58: New England | G58: 8 | H58: 7 | I58: 1 | J58: 18 | K58: 2.25 | L58: 612 | M58: 76.5 | N58: 364 | O58: 21 | P58: 32 | Q58: 37 | R58: 13 | S58: 467 | T58: 0.113490364
A59: Team D | B59: Keelie | C59: Product 2 | D59: 2014-07-01 | E59: Connecticut | F59: New England | G59: 7.5 | H59: 6.5 | I59: 1 | J59: 24 | K59: 3.2 | L59: 816 | M59: 108.8 | N59: 365 | O59: 29 | P59: 34 | Q59: 36 | R59: 14 | S59: 478 | T59: 0.1317991632
A60: Team D | B60: Abram | C60: Product 1 | D60: 2014-08-01 | E60: Connecticut | F60: New England | G60: 7.4 | H60: 6.9 | I60: 0.5 | J60: 22.2 | K60: 3 | L60: 639.7 | M60: 86.44594595 | N60: 391.1 | O60: 29.9 | P60: 33.4 | Q60: 37.5 | R60: 10.1 | S60: 502 | T60: 0.1260956175
A61: Team D | B61: Anibal | C61: Product 2 | D61: 2014-09-01 | E61: Connecticut | F61: New England | G61: 7.9 | H61: 7.6 | I61: 0.3 | J61: 20.6 | K61: 2.607594937 | L61: 716.3 | M61: 90.67088608 | N61: 385.9 | O61: 28.6 | P61: 31.6 | Q61: 39 | R61: 11.6 | S61: 496.7 | T61: 0.1211999195
A62: Team D | B62: Luke | C62: Product 1 | D62: 2014-06-01 | E62: Maine | F62: New England | G62: 7.5 | H62: 6.5 | I62: 1 | J62: 20 | K62: 2.666666667 | L62: 680 | M62: 90.66666667 | N62: 396 | O62: 24 | P62: 39 | Q62: 31 | R62: 10 | S62: 500 | T62: 0.126
A63: Team D | B63: Giselle | C63: Product 2 | D63: 2014-07-01 | E63: Maine | F63: New England | G63: 7 | H63: 6 | I63: 1 | J63: 16 | K63: 2.285714286 | L63: 544 | M63: 77.71428571 | N63: 400 | O63: 30 | P63: 32 | Q63: 38 | R63: 15 | S63: 515 | T63: 0.1203883495
A64: Team D | B64: Alan | C64: Product 1 | D64: 2014-08-01 | E64: Maine | F64: New England | G64: 7.2 | H64: 6.7 | I64: 0.5 | J64: 20.7 | K64: 2.875 | L64: 563.4 | M64: 78.25 | N64: 387.9 | O64: 23.8 | P64: 39 | Q64: 32.1 | R64: 11.9 | S64: 494.7 | T64: 0.1269456236
A65: Team D | B65: Arden | C65: Product 2 | D65: 2014-09-01 | E65: Maine | F65: New England | G65: 7.2 | H65: 6.5 | I65: 0.7 | J65: 19.3 | K65: 2.680555556 | L65: 582.2 | M65: 80.86111111 | N65: 343 | O65: 20.4 | P65: 30.9 | Q65: 39.1 | R65: 10.4 | S65: 443.8 | T65: 0.1155926093
A66: Team D | B66: Guinevere | C66: Product 2 | D66: 2014-06-01 | E66: Massachusetts | F66: New England | G66: 7 | H66: 6 | I66: 1 | J66: 19 | K66: 2.714285714 | L66: 646 | M66: 92.28571429 | N66: 380 | O66: 21 | P66: 32 | Q66: 33 | R66: 11 | S66: 477 | T66: 0.1111111111
A67: Team D | B67: Illiana | C67: Product 2 | D67: 2014-07-01 | E67: Massachusetts | F67: New England | G67: 7.9 | H67: 6.9 | I67: =G67-H67 -> 1 | J67: 22 | K67: =J67/G67 -> 2.784810127 | L67: 748 | M67: =L67/G67 -> 94.6835443 | N67: 332 | O67: 22 | P67: 39 | Q67: 32 | R67: 11 | S67: =SUM(N67:R67) -> 436 | T67: =SUM(O67:P67)/S67 -> 0.1399082569
A68: Team D | B68: Alberto | C68: Product 1 | D68: 2014-08-01 | E68: Massachusetts | F68: New England | G68: 7.6 | H68: 7.1 | I68: 0.5 | J68: 20.2 | K68: 2.657894737 | L68: 654.4 | M68: 86.10526316 | N68: 394.7 | O68: 21.7 | P68: 31.3 | Q68: 32.1 | R68: 10.8 | S68: 490.6 | T68: 0.1080309825
A69: Team D | B69: Arlen | C69: Product 2 | D69: 2014-09-01 | E69: Massachusetts | F69: New England | G69: 7 | H69: 6.5 | I69: 0.5 | J69: 19.3 | K69: 2.757142857 | L69: 714.6 | M69: 102.0857143 | N69: 378.4 | O69: 23.1 | P69: 34.3 | Q69: 38.3 | R69: 13.3 | S69: 487.4 | T69: 0.1177677472
A70: Team D | B70: Riley | C70: Product 2 | D70: 2014-06-01 | E70: New Hampshire | F70: New England | G70: 8 | H70: 7 | I70: 1 | J70: 23 | K70: 2.875 | L70: 782 | M70: 97.75 | N70: 334 | O70: 30 | P70: 38 | Q70: 30 | R70: 11 | S70: 443 | T70: 0.1534988713
A71: Team D | B71: Lacy | C71: Product 1 | D71: 2014-07-01 | E71: New Hampshire | F71: New England | G71: 7.9 | H71: 6.9 | I71: 1 | J71: 22 | K71: 2.784810127 | L71: 748 | M71: 94.6835443 | N71: 377 | O71: 27 | P71: 30 | Q71: 34 | R71: 10 | S71: 478 | T71: 0.1192468619
A72: Team D | B72: Alfonso | C72: Product 1 | D72: 2014-08-01 | E72: New Hampshire | F72: New England | G72: 8.2 | H72: 7.7 | I72: 0.5 | J72: 23.1 | K72: 2.817073171 | L72: 735.5 | M72: 89.69512195 | N72: 371.5 | O72: 25.7 | P72: 37.6 | Q72: 34.1 | R72: 13.9 | S72: 482.8 | T72: 0.1311101906
A73: Team D | B73: Arron | C73: Product 2 | D73: 2014-09-01 | E73: New Hampshire | F73: New England | G73: 7.2 | H73: 6.6 | I73: 0.6 | J73: 20.9 | K73: 2.902777778 | L73: 644.8 | M73: 89.55555556 | N73: 320.9 | O73: 26 | P73: 33.5 | Q73: 36.7 | R73: 13.8 | S73: 430.9 | T73: 0.1380830819
A74: Team D | B74: Iona | C74: Product 1 | D74: 2014-06-01 | E74: Rhode Island | F74: New England | G74: 7 | H74: 6 | I74: 1 | J74: 23 | K74: 3.285714286 | L74: 782 | M74: 111.7142857 | N74: 369 | O74: 21 | P74: 40 | Q74: 34 | R74: 10 | S74: 474 | T74: 0.1286919831
A75: Team D | B75: Hoyt | C75: Product 1 | D75: 2014-07-01 | E75: Rhode Island | F75: New England | G75: 7.6 | H75: 6.6 | I75: 1 | J75: 15 | K75: 1.973684211 | L75: 510 | M75: 67.10526316 | N75: 384 | O75: 21 | P75: 37 | Q75: 39 | R75: 11 | S75: 492 | T75: 0.1178861789
A76: Team D | B76: Alphonso | C76: Product 1 | D76: 2014-08-01 | E76: Rhode Island | F76: New England | G76: 7.9 | H76: 7.5 | I76: 0.4 | J76: 21.8 | K76: 2.759493671 | L76: 814.5 | M76: 103.1012658 | N76: 322 | O76: 20.8 | P76: 36.1 | Q76: 32.3 | R76: 13 | S76: 424.2 | T76: 0.1341348421
A77: Team D | B77: Aurelio | C77: Product 2 | D77: 2014-09-01 | E77: Rhode Island | F77: New England | G77: 7.5 | H77: 7.3 | I77: 0.2 | J77: 21.5 | K77: 2.866666667 | L77: 795.4 | M77: 106.0533333 | N77: 351.1 | O77: 22.6 | P77: 35.8 | Q77: 37.8 | R77: 10.6 | S77: 457.9 | T77: 0.1275387639
A78: Team D | B78: Ivory | C78: Product 1 | D78: 2014-06-01 | E78: Vermont | F78: New England | G78: 7.3 | H78: 6.3 | I78: 1 | J78: 19 | K78: 2.602739726 | L78: 646 | M78: 88.49315068 | N78: 316 | O78: 30 | P78: 40 | Q78: 36 | R78: 15 | S78: 437 | T78: 0.1601830664
A79: Team D | B79: Cheyenne | C79: Product 2 | D79: 2014-07-01 | E79: Vermont | F79: New England | G79: 7 | H79: 6 | I79: 1 | J79: 19 | K79: 2.714285714 | L79: 646 | M79: 92.28571429 | N79: 307 | O79: 24 | P79: 33 | Q79: 40 | R79: 11 | S79: 415 | T79: 0.1373493976
A80: Team D | B80: Ambrose | C80: Product 1 | D80: 2014-08-01 | E80: Vermont | F80: New England | G80: 8 | H80: 7.6 | I80: 0.4 | J80: 19.2 | K80: 2.4 | L80: 593.1 | M80: 74.1375 | N80: 362.2 | O80: 29.9 | P80: 39.2 | Q80: 32 | R80: 14.1 | S80: 477.4 | T80: 0.1447423544
A81: Team D | B81: Bart | C81: Product 2 | D81: 2014-09-01 | E81: Vermont | F81: New England | G81: 7.4 | H81: 6.9 | I81: 0.5 | J81: 19.7 | K81: 2.662162162 | L81: 721.2 | M81: 97.45945946 | N81: 325.5 | O81: 23.5 | P81: 38.3 | Q81: 35.6 | R81: 14.6 | S81: 437.5 | T81: 0.1412571429
A82: Team E | B82: Carolyn | C82: Product 1 | D82: 2014-06-01 | E82: Iowa | F82: Plains | G82: 7.9 | H82: 6.9 | I82: 1 | J82: 23 | K82: 2.911392405 | L82: 782 | M82: 98.98734177 | N82: 382 | O82: 23 | P82: 33 | Q82: 33 | R82: 11 | S82: 482 | T82: 0.1161825726
A83: Team E | B83: Patricia | C83: Product 2 | D83: 2014-07-01 | E83: Iowa | F83: Plains | G83: 7.3 | H83: 6.3 | I83: 1 | J83: 19 | K83: 2.602739726 | L83: 646 | M83: 88.49315068 | N83: 378 | O83: 24 | P83: 35 | Q83: 37 | R83: 13 | S83: 487 | T83: 0.1211498973
A84: Team E | B84: Agustin | C84: Product 1 | D84: 2014-08-01 | E84: Iowa | F84: Plains | G84: 7.4 | H84: 6.8 | I84: 0.6 | J84: 18.1 | K84: 2.445945946 | L84: 610.7 | M84: 82.52702703 | N84: 327 | O84: 24 | P84: 39.9 | Q84: 31.9 | R84: 12.5 | S84: 435.3 | T84: 0.1467953136
A85: Team E | B85: Antonio | C85: Product 2 | D85: 2014-09-01 | E85: Iowa | F85: Plains | G85: 8.2 | H85: 8 | I85: 0.2 | J85: 15.6 | K85: 1.902439024 | L85: 749.5 | M85: 91.40243902 | N85: 382.3 | O85: 22.9 | P85: 30.7 | Q85: 35.6 | R85: 12.5 | S85: 484 | T85: 0.1107438017
A86: Team E | B86: Serena | C86: Product 1 | D86: 2014-06-01 | E86: Kansas | F86: Plains | G86: 7.3 | H86: 6.3 | I86: 1 | J86: 15 | K86: 2.054794521 | L86: 510 | M86: 69.8630137 | N86: 359 | O86: 25 | P86: 37 | Q86: 34 | R86: 10 | S86: 465 | T86: 0.1333333333
A87: Team E | B87: Deanna | C87: Product 2 | D87: 2014-07-01 | E87: Kansas | F87: Plains | G87: 8.3 | H87: 7.3 | I87: 1 | J87: 20 | K87: 2.409638554 | L87: 680 | M87: 81.92771084 | N87: 390 | O87: 21 | P87: 33 | Q87: 35 | R87: 13 | S87: 492 | T87: 0.1097560976
A88: Team E | B88: Ahmad | C88: Product 1 | D88: 2014-08-01 | E88: Kansas | F88: Plains | G88: 8.1 | H88: 7.5 | I88: 0.6 | J88: 16.2 | K88: 2 | L88: 640.4 | M88: 79.0617284 | N88: 305.7 | O88: 25.8 | P88: 34.9 | Q88: 35.1 | R88: 10.7 | S88: 412.2 | T88: 0.1472586123
A89: Team E | B89: Antony | C89: Product 2 | D89: 2014-09-01 | E89: Kansas | F89: Plains | G89: 7.2 | H89: 6.6 | I89: 0.6 | J89: 22 | K89: 3.055555556 | L89: 645.6 | M89: 89.66666667 | N89: 314.8 | O89: 21.5 | P89: 34 | Q89: 30 | R89: 14.6 | S89: 414.9 | T89: 0.1337671728
A90: Team E | B90: Inez | C90: Product 2 | D90: 2014-06-01 | E90: Minnesota | F90: Plains | G90: 7.9 | H90: 6.9 | I90: 1 | J90: 25 | K90: 3.164556962 | L90: 850 | M90: 107.5949367 | N90: 330 | O90: 24 | P90: 32 | Q90: 30 | R90: 10 | S90: 426 | T90: 0.1314553991
A91: Team E | B91: Libby | C91: Product 1 | D91: 2014-07-01 | E91: Minnesota | F91: Plains | G91: 7.3 | H91: 6.3 | I91: 1 | J91: 23 | K91: 3.150684932 | L91: 782 | M91: 107.1232877 | N91: 367 | O91: 27 | P91: 37 | Q91: 36 | R91: 12 | S91: 479 | T91: 0.133611691
A92: Team E | B92: Aldo | C92: Product 1 | D92: 2014-08-01 | E92: Minnesota | F92: Plains | G92: 7.4 | H92: 6.8 | I92: 0.6 | J92: 16.7 | K92: 2.256756757 | L92: 654.2 | M92: 88.40540541 | N92: 377.5 | O92: 29.8 | P92: 34.8 | Q92: 30.1 | R92: 11.3 | S92: 483.5 | T92: 0.1336091003
A93: Team E | B93: Armand | C93: Product 2 | D93: 2014-09-01 | E93: Minnesota | F93: Plains | G93: 7.4 | H93: 7.2 | I93: 0.2 | J93: 17.5 | K93: 2.364864865 | L93: 691.3 | M93: 93.41891892 | N93: 348.2 | O93: 25.4 | P93: 36.4 | Q93: 33.9 | R93: 13.7 | S93: 457.6 | T93: 0.1350524476
A94: Team E | B94: Daria | C94: Product 2 | D94: 2014-06-01 | E94: Missouri | F94: Plains | G94: 8.3 | H94: 7.3 | I94: 1 | J94: 20 | K94: 2.409638554 | L94: 680 | M94: 81.92771084 | N94: 357 | O94: 24 | P94: 30 | Q94: 39 | R94: 11 | S94: 461 | T94: 0.1171366594
A95: Team E | B95: Brynne | C95: Product 1 | D95: 2014-07-01 | E95: Missouri | F95: Plains | G95: 8 | H95: 7 | I95: 1 | J95: 19 | K95: 2.375 | L95: 646 | M95: 80.75 | N95: 370 | O95: 27 | P95: 38 | Q95: 33 | R95: 14 | S95: 482 | T95: 0.1348547718
A96: Team E | B96: Alejandro | C96: Product 1 | D96: 2014-08-01 | E96: Missouri | F96: Plains | G96: 7.9 | H96: 7.6 | I96: 0.3 | J96: 18.9 | K96: 2.392405063 | L96: 699.8 | M96: 88.58227848 | N96: 359.7 | O96: 20.7 | P96: 38.6 | Q96: 38.4 | R96: 14.2 | S96: 471.6 | T96: 0.1257421544
A97: Team E | B97: Arnold | C97: Product 2 | D97: 2014-09-01 | E97: Missouri | F97: Plains | G97: 7.7 | H97: 7.2 | I97: 0.5 | J97: 23.6 | K97: 3.064935065 | L97: 824.2 | M97: 107.038961 | N97: 314.5 | O97: 28.9 | P97: 33.1 | Q97: 30.7 | R97: 10.4 | S97: 417.6 | T97: 0.148467433
A98: Team E | B98: Mercedes | C98: Product 2 | D98: 2014-06-01 | E98: Nebraska | F98: Plains | G98: 7.3 | H98: 6.3 | I98: 1 | J98: 25 | K98: 3.424657534 | L98: 850 | M98: 116.4383562 | N98: 338 | O98: 24 | P98: 34 | Q98: 33 | R98: 12 | S98: 441 | T98: 0.1315192744
A99: Team E | B99: Rosalyn | C99: Product 1 | D99: 2014-07-01 | E99: Nebraska | F99: Plains | G99: 7 | H99: 6 | I99: 1 | J99: 16 | K99: 2.285714286 | L99: 544 | M99: 77.71428571 | N99: 353 | O99: 27 | P99: 37 | Q99: 35 | R99: 12 | S99: 464 | T99: 0.1379310345
A100: Team E | B100: Alexander | C100: Product 1 | D100: 2014-08-01 | E100: Nebraska | F100: Plains | G100: 7.5 | H100: 7.2 | I100: 0.3 | J100: 16.9 | K100: 2.253333333 | L100: 539.3 | M100: 71.90666667 | N100: 348.1 | O100: 22.3 | P100: 38.8 | Q100: 30.9 | R100: 14.9 | S100: 455 | T100: 0.1342857143
A101: Team E | B101: Arnulfo | C101: Product 2 | D101: 2014-09-01 | E101: Nebraska | F101: Plains | G101: 7.4 | H101: 6.6 | I101: 0.8 | J101: 19.7 | K101: 2.662162162 | L101: 519 | M101: 70.13513514 | N101: 304 | O101: 20.9 | P101: 39.3 | Q101: 37.4 | R101: 13.6 | S101: 415.2 | T101: 0.1449903661
A102: Team E | B102: Karyn | C102: Product 2 | D102: 2014-06-01 | E102: North Dakota | F102: Plains | G102: 7.3 | H102: 6.3 | I102: 1 | J102: 19 | K102: 2.602739726 | L102: 646 | M102: 88.49315068 | N102: 317 | O102: 25 | P102: 32 | Q102: 38 | R102: 13 | S102: 425 | T102: 0.1341176471
A103: Team E | B103: Frances | C103: Product 1 | D103: 2014-07-01 | E103: North Dakota | F103: Plains | G103: 8.3 | H103: 7.3 | I103: 1 | J103: 16 | K103: 1.927710843 | L103: 544 | M103: 65.54216867 | N103: 394 | O103: 27 | P103: 37 | Q103: 37 | R103: 10 | S103: 505 | T103: 0.1267326733
A104: Team E | B104: Allan | C104: Product 1 | D104: 2014-08-01 | E104: North Dakota | F104: Plains | G104: 7.5 | H104: 7.1 | I104: 0.4 | J104: 17.9 | K104: 2.386666667 | L104: 681.1 | M104: 90.81333333 | N104: 300.1 | O104: 22.3 | P104: 30.5 | Q104: 31.5 | R104: 13.6 | S104: 398 | T104: 0.1326633166
A105: Team E | B105: Ashley | C105: Product 2 | D105: 2014-09-01 | E105: North Dakota | F105: Plains | G105: 7.5 | H105: 7 | I105: 0.5 | J105: 20.5 | K105: 2.733333333 | L105: 550.9 | M105: 73.45333333 | N105: 318.2 | O105: 26.5 | P105: 38 | Q105: 33.3 | R105: 11.1 | S105: 427.1 | T105: 0.1510184968
A106: Team E | B106: Jana | C106: Product 1 | D106: 2014-06-01 | E106: South Dakota | F106: Plains | G106: 7.9 | H106: 6.9 | I106: 1 | J106: 22 | K106: 2.784810127 | L106: 748 | M106: 94.6835443 | N106: 341 | O106: 22 | P106: 30 | Q106: 31 | R106: 14 | S106: 438 | T106: 0.1187214612
A107: Team E | B107: Quyn | C107: Product 2 | D107: 2014-07-01 | E107: South Dakota | F107: Plains | G107: 7.3 | H107: 6.3 | I107: 1 | J107: 21 | K107: 2.876712329 | L107: 714 | M107: 97.80821918 | N107: 381 | O107: 23 | P107: 34 | Q107: 36 | R107: 11 | S107: 485 | T107: 0.1175257732
A108: Team E | B108: Alva | C108: Product 1 | D108: 2014-08-01 | E108: South Dakota | F108: Plains | G108: 8.3 | H108: 7.6 | I108: 0.7 | J108: 17.9 | K108: 2.156626506 | L108: 590.8 | M108: 71.18072289 | N108: 312.8 | O108: 24.1 | P108: 36.9 | Q108: 31.5 | R108: 13.4 | S108: 418.7 | T108: 0.1456890375
A109: Team E | B109: Avery | C109: Product 2 | D109: 2014-09-01 | E109: South Dakota | F109: Plains | G109: 7.4 | H109: 7 | I109: 0.4 | J109: 19 | K109: 2.567567568 | L109: 630.8 | M109: 85.24324324 | N109: 371.2 | O109: 20.7 | P109: 37.2 | Q109: 33.6 | R109: 12.3 | S109: 475 | T109: 0.1218947368
A110: Team F | B110: Shaine | C110: Product 1 | D110: 2014-06-01 | E110: Colorado | F110: Rocky Mountain | G110: 8.3 | H110: 7.3 | I110: 1 | J110: 19 | K110: 2.289156627 | L110: 646 | M110: 77.8313253 | N110: 356 | O110: 28 | P110: 38 | Q110: 40 | R110: 14 | S110: 476 | T110: 0.1386554622
A111: Team F | B111: Farrah | C111: Product 2 | D111: 2014-07-01 | E111: Colorado | F111: Rocky Mountain | G111: 8 | H111: 7 | I111: 1 | J111: 24 | K111: 3 | L111: 816 | M111: 102 | N111: 321 | O111: 27 | P111: 32 | Q111: 40 | R111: 14 | S111: 434 | T111: 0.1359447005
A112: Team F | B112: Abraham | C112: Product 1 | D112: 2014-08-01 | E112: Colorado | F112: Rocky Mountain | G112: 7.8 | H112: 7.6 | I112: 0.2 | J112: 19.8 | K112: 2.538461538 | L112: 749 | M112: 96.02564103 | N112: 397.5 | O112: 21.3 | P112: 30.4 | Q112: 39.4 | R112: 11.3 | S112: 499.9 | T112: 0.1034206841
A113: Team F | B113: Angelo | C113: Product 2 | D113: 2014-09-01 | E113: Colorado | F113: Rocky Mountain | G113: 7.4 | H113: 6.6 | I113: 0.8 | J113: 16.5 | K113: 2.22972973 | L113: 700.8 | M113: 94.7027027 | N113: 303.2 | O113: 23.3 | P113: 38.1 | Q113: 33.4 | R113: 14.1 | S113: 412.1 | T113: 0.1489929629
A114: Team F | B114: Shelby | C114: Product 1 | D114: 2014-06-01 | E114: Idaho | F114: Rocky Mountain | G114: 7.5 | H114: 6.5 | I114: 1 | J114: 22 | K114: 2.933333333 | L114: 748 | M114: 99.73333333 | N114: 389 | O114: 20 | P114: 39 | Q114: 39 | R114: 13 | S114: 500 | T114: 0.118
A115: Team F | B115: Kendall | C115: Product 2 | D115: 2014-07-01 | E115: Idaho | F115: Rocky Mountain | G115: 7.3 | H115: 6.3 | I115: 1 | J115: 24 | K115: 3.287671233 | L115: 816 | M115: 111.7808219 | N115: 338 | O115: 28 | P115: 35 | Q115: 39 | R115: 15 | S115: 455 | T115: 0.1384615385
A116: Team F | B116: Adolfo | C116: Product 1 | D116: 2014-08-01 | E116: Idaho | F116: Rocky Mountain | G116: 8.3 | H116: 7.5 | I116: 0.8 | J116: 20.4 | K116: 2.457831325 | L116: 775.5 | M116: 93.43373494 | N116: 326.3 | O116: 20.3 | P116: 31.2 | Q116: 33.2 | R116: 10.7 | S116: 421.7 | T116: 0.1221247332
A117: Team F | B117: Anton | C117: Product 2 | D117: 2014-09-01 | E117: Idaho | F117: Rocky Mountain | G117: 8 | H117: 7.7 | I117: 0.3 | J117: 22.5 | K117: 2.8125 | L117: 766.7 | M117: 95.8375 | N117: 359.8 | O117: 20.6 | P117: 36.3 | Q117: 33.3 | R117: 13.4 | S117: 463.4 | T117: 0.122788088
A118: Team F | B118: Madeson | C118: Product 2 | D118: 2014-06-01 | E118: Montana | F118: Rocky Mountain | G118: 8 | H118: 7 | I118: 1 | J118: 16 | K118: 2 | L118: 544 | M118: 68 | N118: 394 | O118: 29 | P118: 37 | Q118: 34 | R118: 11 | S118: 505 | T118: 0.1306930693
A119: Team F | B119: Olympia | C119: Product 1 | D119: 2014-07-01 | E119: Montana | F119: Rocky Mountain | G119: 7.5 | H119: 6.5 | I119: 1 | J119: 24 | K119: 3.2 | L119: 816 | M119: 108.8 | N119: 379 | O119: 20 | P119: 36 | Q119: 31 | R119: 14 | S119: 480 | T119: 0.1166666667
A120: Team F | B120: Alex | C120: Product 1 | D120: 2014-08-01 | E120: Montana | F120: Rocky Mountain | G120: 7.6 | H120: 7 | I120: 0.6 | J120: 15.5 | K120: 2.039473684 | L120: 646.8 | M120: 85.10526316 | N120: 398.9 | O120: 20.7 | P120: 39.1 | Q120: 36.3 | R120: 14.9 | S120: 509.9 | T120: 0.1172778976
A121: Team F | B121: Arnoldo | C121: Product 2 | D121: 2014-09-01 | E121: Montana | F121: Rocky Mountain | G121: 7 | H121: 6.6 | I121: 0.4 | J121: 22 | K121: 3.142857143 | L121: 788.5 | M121: 112.6428571 | N121: 370.3 | O121: 20.9 | P121: 33.5 | Q121: 37.4 | R121: 11.4 | S121: 473.5 | T121: 0.1148891235
A122: Team F | B122: Courtney | C122: Product 1 | D122: 2014-06-01 | E122: Utah | F122: Rocky Mountain | G122: 7.9 | H122: 6.9 | I122: 1 | J122: 23 | K122: 2.911392405 | L122: 782 | M122: 98.98734177 | N122: 371 | O122: 29 | P122: 30 | Q122: 38 | R122: 12 | S122: 480 | T122: 0.1229166667
A123: Team F | B123: April | C123: Product 2 | D123: 2014-07-01 | E123: Utah | F123: Rocky Mountain | G123: 7.5 | H123: 6.5 | I123: 1 | J123: 15 | K123: 2 | L123: 510 | M123: 68 | N123: 324 | O123: 25 | P123: 32 | Q123: 31 | R123: 14 | S123: 426 | T123: 0.1338028169
A124: Team F | B124: Amado | C124: Product 1 | D124: 2014-08-01 | E124: Utah | F124: Rocky Mountain | G124: 7.3 | H124: 6.9 | I124: 0.4 | J124: 17.9 | K124: 2.452054795 | L124: 633.6 | M124: 86.79452055 | N124: 311.8 | O124: 26.2 | P124: 32.4 | Q124: 36 | R124: 13 | S124: 419.4 | T124: 0.1397234144
A125: Team F | B125: Barry | C125: Product 2 | D125: 2014-09-01 | E125: Utah | F125: Rocky Mountain | G125: 7.7 | H125: 7.2 | I125: 0.5 | J125: 16.3 | K125: 2.116883117 | L125: 822.4 | M125: 106.8051948 | N125: 363.1 | O125: 27.9 | P125: 36.2 | Q125: 39.9 | R125: 12.8 | S125: 479.9 | T125: 0.1335694936
A126: Team F | B126: Gretchen | C126: Product 1 | D126: 2014-06-01 | E126: Wyoming | F126: Rocky Mountain | G126: 7.6 | H126: 6.6 | I126: 1 | J126: 17 | K126: 2.236842105 | L126: 578 | M126: 76.05263158 | N126: 323 | O126: 27 | P126: 38 | Q126: 36 | R126: 11 | S126: 435 | T126: 0.1494252874
A127: Team F | B127: Medge | C127: Product 2 | D127: 2014-07-01 | E127: Wyoming | F127: Rocky Mountain | G127: 7.9 | H127: 6.9 | I127: 1 | J127: 15 | K127: 1.898734177 | L127: 510 | M127: 64.55696203 | N127: 392 | O127: 27 | P127: 30 | Q127: 30 | R127: 12 | S127: 491 | T127: 0.116089613
A128: Team F | B128: Andreas | C128: Product 1 | D128: 2014-08-01 | E128: Wyoming | F128: Rocky Mountain | G128: 7.6 | H128: 7.4 | I128: 0.2 | J128: 16.5 | K128: 2.171052632 | L128: 775.1 | M128: 101.9868421 | N128: 366.7 | O128: 22.7 | P128: 30.7 | Q128: 31.6 | R128: 12.3 | S128: 464 | T128: 0.1150862069
A129: Team F | B129: Benedict | C129: Product 2 | D129: 2014-09-01 | E129: Wyoming | F129: Rocky Mountain | G129: 8.1 | H129: 7.4 | I129: 0.7 | J129: 23.6 | K129: 2.913580247 | L129: 777.1 | M129: 95.9382716 | N129: 339.9 | O129: 21 | P129: 38.4 | Q129: 36.8 | R129: 14.7 | S129: 450.8 | T129: 0.1317657498
A130: Team G | B130: Sydnee | C130: Product 1 | D130: 2014-06-01 | E130: Alabama | F130: Southeast | G130: 4.71625 | H130: 4.0425 | I130: 0.67375 | J130: 14.8225 | K130: 3.142857143 | L130: 503.965 | M130: 106.8571429 | N130: 241.2025 | O130: 16.17 | P130: 26.95 | Q130: 21.56 | R130: 10.10625 | S130: 315.98875 | T130: 0.1364605544
A131: Team G | B131: Noelani | C131: Product 1 | D131: 2014-07-01 | E131: Alabama | F131: Southeast | G131: 5.322625 | H131: 4.648875 | I131: =G131-H131 -> 0.67375 | J131: 10.78 | K131: =J131/G131 -> 2.025316456 | L131: 366.52 | M131: =L131/G131 -> 68.86075949 | N131: 245.91875 | O131: 20.2125 | P131: 23.58125 | Q131: 22.23375 | R131: 9.4325 | S131: =SUM(N131:R131) -> 321.37875 | T131: =SUM(O131:P131)/S131 -> 0.1362683438
A132: Team G | B132: Aaron | C132: Product 1 | D132: 2014-08-01 | E132: Alabama | F132: Southeast | G132: 5.053125 | H132: 4.5815 | I132: 0.471625 | J132: 10.64525 | K132: 2.106666667 | L132: 403.30675 | M132: 79.81333333 | N132: 251.376125 | O132: 15.22675 | P132: 23.648625 | Q132: 25.333 | R132: 8.421875 | S132: 324.006375 | T132: 0.1199833645
A133: Team G | B133: Andres | C133: Product 2 | D133: 2014-09-01 | E133: Alabama | F133: Southeast | G133: 5.39 | H133: 4.918375 | I133: 0.471625 | J133: 10.10625 | K133: 1.875 | L133: 490.018375 | M133: 90.9125 | N133: 227.997 | O133: 17.719625 | P133: 20.414625 | Q133: 23.716 | R133: 8.75875 | S133: 298.606 | T133: 0.1277075812
A134: Team G | B134: Xantha | C134: Product 1 | D134: 2014-06-01 | E134: Arkansas | F134: Southeast | G134: 5.322625 | H134: 4.648875 | I134: 0.67375 | J134: 16.17 | K134: 3.037974684 | L134: 549.78 | M134: 103.2911392 | N134: 225.70625 | O134: 18.865 | P134: 20.88625 | Q134: 22.23375 | R134: 10.10625 | S134: 297.7975 | T134: 0.1334841629
A135: Team G | B135: Alec | C135: Product 1 | D135: 2014-07-01 | E135: Arkansas | F135: Southeast | G135: 5.592125 | H135: 4.918375 | I135: 0.67375 | J135: 14.14875 | K135: 2.530120482 | L135: 481.0575 | M135: 86.02409639 | N135: 202.125 | O135: 15.49625 | P135: 26.27625 | Q135: 22.9075 | R135: 9.4325 | S135: 276.2375 | T135: 0.1512195122
A136: Team G | B136: Abe | C136: Product 1 | D136: 2014-08-01 | E136: Arkansas | F136: Southeast | G136: 5.457375 | H136: 4.918375 | I136: 0.539 | J136: 13.07075 | K136: 2.395061728 | L136: 438.813375 | M136: 80.40740741 | N136: 244.4365 | O136: 13.87925 | P136: 25.804625 | Q136: 24.591875 | R136: 6.7375 | S136: 315.44975 | T136: 0.1258009398
A137: Team G | B137: Andy | C137: Product 2 | D137: 2014-09-01 | E137: Arkansas | F137: Southeast | G137: 5.25525 | H137: 4.918375 | I137: 0.336875 | J137: 15.428875 | K137: 2.935897436 | L137: 360.793125 | M137: 68.65384615 | N137: 257.23775 | O137: 20.2125 | P137: 23.783375 | Q137: 20.414625 | R137: 6.87225 | S137: 328.5205 | T137: 0.1339212469
A138: Team G | B138: Nevada | C138: Product 1 | D138: 2014-06-01 | E138: Florida | F138: Southeast | G138: 5.592125 | H138: 4.918375 | I138: 0.67375 | J138: 15.49625 | K138: 2.771084337 | L138: 526.8725 | M138: 94.21686747 | N138: 215.6 | O138: 15.49625 | P138: 20.2125 | Q138: 26.27625 | R138: 8.085 | S138: 285.67 | T138: 0.125
A139: Team G | B139: Audra | C139: Product 2 | D139: 2014-07-01 | E139: Florida | F139: Southeast | G139: 5.1205 | H139: 4.44675 | I139: 0.67375 | J139: 10.78 | K139: 2.105263158 | L139: 366.52 | M139: 71.57894737 | N139: 253.33 | O139: 18.865 | P139: 26.27625 | Q139: 22.23375 | R139: 8.085 | S139: 328.79 | T139: 0.137295082
A140: Team G | B140: Adam | C140: Product 1 | D140: 2014-08-01 | E140: Florida | F140: Southeast | G140: 4.71625 | H140: 4.514125 | I140: 0.202125 | J140: 16.776375 | K140: 3.557142857 | L140: 417.657625 | M140: 88.55714286 | N140: 257.50725 | O140: 13.946625 | P140: 22.031625 | Q140: 21.42525 | R140: 9.4325 | S140: 324.34325 | T140: 0.1109264645
A141: Team G | B141: Antione | C141: Product 2 | D141: 2014-09-01 | E141: Florida | F141: Southeast | G141: 5.457375 | H141: 5.053125 | I141: 0.40425 | J141: 12.194875 | K141: 2.234567901 | L141: 451.479875 | M141: 82.72839506 | N141: 226.38 | O141: 15.428875 | P141: 20.953625 | Q141: 23.177 | R141: 9.230375 | S141: 295.169875 | T141: 0.1232595298
A142: Team G | B142: Miriam | C142: Product 1 | D142: 2014-06-01 | E142: Georgia | F142: Southeast | G142: 5.39 | H142: 4.71625 | I142: 0.67375 | J142: 16.17 | K142: 3 | L142: 549.78 | M142: 102 | N142: 228.40125 | O142: 20.2125 | P142: 26.95 | Q142: 20.2125 | R142: 7.41125 | S142: 303.1875 | T142: 0.1555555556
A143: Team G | B143: Hermione | C143: Product 2 | D143: 2014-07-01 | E143: Georgia | F143: Southeast | G143: 5.322625 | H143: 4.648875 | I143: 0.67375 | J143: 10.78 | K143: 2.025316456 | L143: 366.52 | M143: 68.86075949 | N143: 268.1525 | O143: 19.53875 | P143: 20.88625 | Q143: 22.23375 | R143: 7.41125 | S143: 338.2225 | T143: 0.1195219124
A144: Team G | B144: Adan | C144: Product 1 | D144: 2014-08-01 | E144: Georgia | F144: Southeast | G144: 5.457375 | H144: 5.25525 | I144: 0.202125 | J144: 12.936 | K144: 2.37037037 | L144: 366.856875 | M144: 67.22222222 | N144: 220.451 | O144: 14.2835 | P144: 24.5245 | Q144: 26.343625 | R144: 7.68075 | S144: 293.283375 | T144: 0.1323225362
A145: Team G | B145: Antoine | C145: Product 2 | D145: 2014-09-01 | E145: Georgia | F145: Southeast | G145: 4.783625 | H145: 4.514125 | I145: 0.2695 | J145: 16.776375 | K145: 3.507042254 | L145: 537.180875 | M145: 112.2957746 | N145: 264.177375 | O145: 16.102625 | P145: 21.896875 | Q145: 26.411 | R145: 9.29775 | S145: 337.885625 | T145: 0.1124626122
A146: Team G | B146: Juliet | C146: Product 1 | D146: 2014-06-01 | E146: Kentucky | F146: Southeast | G146: 5.592125 | H146: 4.918375 | I146: 0.67375 | J146: 16.17 | K146: 2.891566265 | L146: 549.78 | M146: 98.31325301 | N146: 220.31625 | O146: 13.475 | P146: 22.9075 | Q146: 21.56 | R146: 6.7375 | S146: 284.99625 | T146: 0.1276595745
A147: Team G | B147: Rae | C147: Product 2 | D147: 2014-07-01 | E147: Kentucky | F147: Southeast | G147: 5.39 | H147: 4.71625 | I147: 0.67375 | J147: 16.84375 | K147: 3.125 | L147: 572.6875 | M147: 106.25 | N147: 251.30875 | O147: 18.865 | P147: 20.88625 | Q147: 26.95 | R147: 6.7375 | S147: 324.7475 | T147: 0.122406639
A148: Team G | B148: Ahmed | C148: Product 1 | D148: 2014-08-01 | E148: Kentucky | F148: Southeast | G148: 5.322625 | H148: 4.918375 | I148: 0.40425 | J148: 14.14875 | K148: 2.658227848 | L148: 359.2435 | M148: 67.49367089 | N148: 230.759375 | O148: 17.38275 | P148: 23.918125 | Q148: 24.65925 | R148: 7.95025 | S148: 304.66975 | T148: 0.135559487
A149: Team G | B149: Antwan | C149: Product 2 | D149: 2014-09-01 | E149: Kentucky | F149: Southeast | G149: 4.918375 | H149: 4.5815 | I149: 0.336875 | J149: 15.024625 | K149: 3.054794521 | L149: 482.607125 | M149: 98.12328767 | N149: 215.936875 | O149: 19.875625 | P149: 23.716 | Q149: 22.3685 | R149: 9.230375 | S149: 291.127375 | T149: 0.1497338579
A150: Team G | B150: Serina | C150: Product 1 | D150: 2014-06-01 | E150: Louisiana | F150: Southeast | G150: 5.39 | H150: 4.71625 | I150: 0.67375 | J150: 16.84375 | K150: 3.125 | L150: 572.6875 | M150: 106.25 | N150: 224.35875 | O150: 19.53875 | P150: 22.9075 | Q150: 23.58125 | R150: 8.085 | S150: 298.47125 | T150: 0.1422121896
A151: Team G | B151: Ashely | C151: Product 2 | D151: 2014-07-01 | E151: Louisiana | F151: Southeast | G151: 5.053125 | H151: 4.379375 | I151: 0.67375 | J151: 14.14875 | K151: 2.8 | L151: 481.0575 | M151: 95.2 | N151: 263.43625 | O151: 18.19125 | P151: 20.88625 | Q151: 23.58125 | R151: 8.75875 | S151: 334.85375 | T151: 0.1167002012
A152: Team G | B152: Al | C152: Product 1 | D152: 2014-08-01 | E152: Louisiana | F152: Southeast | G152: 5.25525 | H152: 4.71625 | I152: 0.539 | J152: 11.251625 | K152: 2.141025641 | L152: 553.350875 | M152: 105.2948718 | N152: 220.248875 | O152: 15.428875 | P152: 21.627375 | Q152: 21.42525 | R152: 6.87225 | S152: 285.602625 | T152: 0.129747582
A153: Team G | B153: Archie | C153: Product 2 | D153: 2014-09-01 | E153: Louisiana | F153: Southeast | G153: 5.592125 | H153: 5.053125 | I153: 0.539 | J153: 14.081375 | K153: 2.518072289 | L153: 486.9865 | M153: 87.08433735 | N153: 225.504125 | O153: 18.99975 | P153: 20.684125 | Q153: 21.69475 | R153: 8.624 | S153: 295.50675 | T153: 0.1342909257
A154: Team G | B154: Maris | C154: Product 2 | D154: 2014-06-01 | E154: Mississippi | F154: Southeast | G154: 4.918375 | H154: 4.244625 | I154: 0.67375 | J154: 12.80125 | K154: 2.602739726 | L154: 435.2425 | M154: 88.49315068 | N154: 238.5075 | O154: 18.865 | P154: 25.6025 | Q154: 24.255 | R154: 7.41125 | S154: 314.64125 | T154: 0.1413276231
A155: Team G | B155: Rowan | C155: Product 1 | D155: 2014-07-01 | E155: Mississippi | F155: Southeast | G155: 5.592125 | H155: 4.918375 | I155: 0.67375 | J155: 16.84375 | K155: 3.012048193 | L155: 572.6875 | M155: 102.4096386 | N155: 234.465 | O155: 13.475 | P155: 25.6025 | Q155: 20.2125 | R155: 6.7375 | S155: 300.4925 | T155: 0.130044843
A156: Team G | B156: Alec | C156: Product 1 | D156: 2014-08-01 | E156: Mississippi | F156: Southeast | G156: 4.98575 | H156: 4.648875 | I156: 0.336875 | J156: 10.577875 | K156: 2.121621622 | L156: 401.622375 | M156: 80.55405405 | N156: 214.858875 | O156: 14.350875 | P156: 25.669875 | Q156: 21.627375 | R156: 7.2765 | S156: 283.7835 | T156: 0.141025641
A157: Team G | B157: Armando | C157: Product 2 | D157: 2014-09-01 | E157: Mississippi | F157: Southeast | G157: 5.25525 | H157: 4.918375 | I157: 0.336875 | J157: 11.790625 | K157: 2.243589744 | L157: 442.721125 | M157: 84.24358974 | N157: 250.702375 | O157: 17.989125 | P157: 21.896875 | Q157: 21.2905 | R157: 8.085 | S157: 319.963875 | T157: 0.1246578227
A158: Team G | B158: Hilary | C158: Product 2 | D158: 2014-06-01 | E158: North Carolina | F158: Southeast | G158: 5.322625 | H158: 4.648875 | I158: 0.67375 | J158: 12.80125 | K158: 2.405063291 | L158: 435.2425 | M158: 81.7721519 | N158: 203.4725 | O158: 18.865 | P158: 21.56 | Q158: 22.9075 | R158: 10.10625 | S158: 276.91125 | T158: 0.1459854015
A159: Team G | B159: Mallory | C159: Product 1 | D159: 2014-07-01 | E159: North Carolina | F159: Southeast | G159: 4.918375 | H159: 4.244625 | I159: 0.67375 | J159: 12.80125 | K159: 2.602739726 | L159: 435.2425 | M159: 88.49315068 | N159: 222.3375 | O159: 20.2125 | P159: 22.23375 | Q159: 26.95 | R159: 8.75875 | S159: 300.4925 | T159: 0.1412556054
A160: Team G | B160: Ali | C160: Product 1 | D160: 2014-08-01 | E160: North Carolina | F160: Southeast | G160: 4.851 | H160: 4.5815 | I160: 0.2695 | J160: 12.599125 | K160: 2.597222222 | L160: 378.78225 | M160: 78.08333333 | N160: 231.837375 | O160: 20.2125 | P160: 21.96425 | Q160: 24.861375 | R160: 8.8935 | S160: 307.769 | T160: 0.1370402802
A161: Team G | B161: Asa | C161: Product 2 | D161: 2014-09-01 | E161: North Carolina | F161: Southeast | G161: 4.918375 | H161: 4.44675 | I161: 0.471625 | J161: 14.014 | K161: 2.849315068 | L161: 435.175125 | M161: 88.47945205 | N161: 257.709375 | O161: 14.350875 | P161: 24.38975 | Q161: 26.95 | R161: 7.209125 | S161: 330.609125 | T161: 0.1171795394
A162: Team G | B162: Illana | C162: Product 1 | D162: 2014-06-01 | E162: South Carolina | F162: Southeast | G162: 5.1205 | H162: 4.44675 | I162: 0.67375 | J162: 10.10625 | K162: 1.973684211 | L162: 343.6125 | M162: 67.10526316 | N162: 239.855 | O162: 14.14875 | P162: 23.58125 | Q162: 23.58125 | R162: 6.7375 | S162: 307.90375 | T162: 0.1225382932
A163: Team G | B163: Tashya | C163: Product 2 | D163: 2014-07-01 | E163: South Carolina | F163: Southeast | G163: 5.322625 | H163: 4.648875 | I163: 0.67375 | J163: 16.17 | K163: 3.037974684 | L163: 549.78 | M163: 103.2911392 | N163: 255.35125 | O163: 15.49625 | P163: 24.92875 | Q163: 22.23375 | R163: 7.41125 | S163: 325.42125 | T163: 0.1242236025
A164: Team G | B164: Alton | C164: Product 1 | D164: 2014-08-01 | E164: South Carolina | F164: Southeast | G164: 4.851 | H164: 4.44675 | I164: 0.40425 | J164: 15.833125 | K164: 3.263888889 | L164: 470.8165 | M164: 97.05555556 | N164: 206.03275 | O164: 15.22675 | P164: 25.130875 | Q164: 22.23375 | R164: 7.478625 | S164: 276.10275 | T164: 0.1461688629
A165: Team G | B165: Austin | C165: Product 2 | D165: 2014-09-01 | E165: South Carolina | F165: Southeast | G165: 4.71625 | H165: 4.244625 | I165: 0.471625 | J165: 11.99275 | K165: 2.542857143 | L165: 347.52025 | M165: 73.68571429 | N165: 224.224 | O165: 15.22675 | P165: 23.85075 | Q165: 26.747875 | R165: 7.41125 | S165: 297.460625 | T165: 0.1313703284
A166: Team G | B166: Ariel | C166: Product 1 | D166: 2014-06-01 | E166: Tennessee | F166: Southeast | G166: 4.918375 | H166: 4.244625 | I166: 0.67375 | J166: 10.10625 | K166: 2.054794521 | L166: 343.6125 | M166: 69.8630137 | N166: 202.79875 | O166: 18.19125 | P166: 26.27625 | Q166: 26.27625 | R166: 7.41125 | S166: 280.95375 | T166: 0.1582733813
A167: Team G | B167: Sierra | C167: Product 2 | D167: 2014-07-01 | E167: Tennessee | F167: Southeast | G167: 5.592125 | H167: 4.918375 | I167: 0.67375 | J167: 10.10625 | K167: 1.807228916 | L167: 343.6125 | M167: 61.44578313 | N167: 203.4725 | O167: 14.14875 | P167: 22.9075 | Q167: 24.255 | R167: 8.75875 | S167: 273.5425 | T167: 0.1354679803
A168: Team G | B168: Alvaro | C168: Product 1 | D168: 2014-08-01 | E168: Tennessee | F168: Southeast | G168: 5.39 | H168: 4.918375 | I168: 0.471625 | J168: 14.216125 | K168: 2.6375 | L168: 458.28475 | M168: 85.025 | N168: 245.447125 | O168: 19.336625 | P168: 23.109625 | Q168: 23.513875 | R168: 9.230375 | S168: 320.637625 | T168: 0.1323807523
A169: Team G | B169: Barney | C169: Product 2 | D169: 2014-09-01 | E169: Tennessee | F169: Southeast | G169: 5.592125 | H169: 5.39 | I169: 0.202125 | J169: 15.294125 | K169: 2.734939759 | L169: 500.259375 | M169: 89.45783133 | N169: 240.6635 | O169: 13.87925 | P169: 26.747875 | Q169: 24.996125 | R169: 9.29775 | S169: 315.5845 | T169: 0.128736123
A170: Team G | B170: Cleo | C170: Product 1 | D170: 2014-06-01 | E170: Virginia | F170: Southeast | G170: 5.592125 | H170: 4.918375 | I170: 0.67375 | J170: 13.475 | K170: 2.409638554 | L170: 458.15 | M170: 81.92771084 | N170: 206.84125 | O170: 18.865 | P170: 22.23375 | Q170: 21.56 | R170: 8.085 | S170: 277.585 | T170: 0.1480582524
A171: Team G | B171: Heather | C171: Product 2 | D171: 2014-07-01 | E171: Virginia | F171: Southeast | G171: 5.1205 | H171: 4.44675 | I171: 0.67375 | J171: 11.45375 | K171: 2.236842105 | L171: 389.4275 | M171: 76.05263158 | N171: 268.1525 | O171: 18.865 | P171: 20.88625 | Q171: 21.56 | R171: 6.7375 | S171: 336.20125 | T171: 0.1182364729
A172: Team G | B172: Amos | C172: Product 1 | D172: 2014-08-01 | E172: Virginia | F172: Southeast | G172: 4.98575 | H172: 4.648875 | I172: 0.336875 | J172: 14.95725 | K172: 3 | L172: 471.018625 | M172: 94.47297297 | N172: 253.936375 | O172: 20.07775 | P172: 20.549375 | Q172: 21.223125 | R172: 7.209125 | S172: 322.99575 | T172: 0.1257822278
A173: Team G | B173: Barton | C173: Product 2 | D173: 2014-09-01 | E173: Virginia | F173: Southeast | G173: 5.25525 | H173: 5.1205 | I173: 0.13475 | J173: 12.80125 | K173: 2.435897436 | L173: 423.78875 | M173: 80.64102564 | N173: 213.30925 | O173: 15.092 | P173: 26.747875 | Q173: 25.400375 | R173: 9.702 | S173: 290.2515 | T173: 0.1441504178
A174: Team G | B174: Kirby | C174: Product 1 | D174: 2014-06-01 | E174: West Virginia | F174: Southeast | G174: 5.053125 | H174: 4.379375 | I174: 0.67375 | J174: 10.78 | K174: 2.133333333 | L174: 366.52 | M174: 72.53333333 | N174: 237.16 | O174: 15.49625 | P174: 26.27625 | Q174: 21.56 | R174: 9.4325 | S174: 309.925 | T174: 0.1347826087
A175: Team G | B175: Shelley | C175: Product 2 | D175: 2014-07-01 | E175: West Virginia | F175: Southeast | G175: 4.71625 | H175: 4.0425 | I175: 0.67375 | J175: 13.475 | K175: 2.857142857 | L175: 458.15 | M175: 97.14285714 | N175: 224.35875 | O175: 13.475 | P175: 20.88625 | Q175: 22.9075 | R175: 8.75875 | S175: 290.38625 | T175: 0.1183294664
A176: Team G | B176: Andre | C176: Product 1 | D176: 2014-08-01 | E176: West Virginia | F176: Southeast | G176: 5.322625 | H176: 4.851 | I176: 0.471625 | J176: 16.57425 | K176: 3.113924051 | L176: 378.51275 | M176: 71.11392405 | N176: 241.60675 | O176: 18.797625 | P176: 25.939375 | Q176: 21.762125 | R176: 8.017625 | S176: 316.1235 | T176: 0.1415174766
A177: Team G | B177: Beau | C177: Product 2 | D177: 2014-09-01 | E177: West Virginia | F177: Southeast | G177: 5.322625 | H177: 4.783625 | I177: 0.539 | J177: 10.10625 | K177: 1.898734177 | L177: 455.7245 | M177: 85.62025316 | N177: 254.1385 | O177: 18.797625 | P177: 21.8295 | Q177: 23.31175 | R177: 7.882875 | S177: 325.96025 | T177: 0.1246382803
A178: Team H | B178: Flavia | C178: Product 1 | D178: 2014-06-01 | E178: Arizona | F178: Southwest | G178: 7.6 | H178: 6.6 | I178: 1 | J178: 15 | K178: 1.973684211 | L178: 510 | M178: 67.10526316 | N178: 302 | O178: 24 | P178: 37 | Q178: 33 | R178: 12 | S178: 408 | T178: 0.1495098039
A179: Team H | B179: Fleur | C179: Product 1 | D179: 2014-07-01 | E179: Arizona | F179: Southwest | G179: 7.3 | H179: 6.3 | I179: 1 | J179: 24 | K179: 3.287671233 | L179: 816 | M179: 111.7808219 | N179: 329 | O179: 26 | P179: 36 | Q179: 39 | R179: 10 | S179: 440 | T179: 0.1409090909
A180: Team H | B180: Abdul | C180: Product 1 | D180: 2014-08-01 | E180: Arizona | F180: Southwest | G180: 7.9 | H180: 7.7 | I180: 0.2 | J180: 23 | K180: 2.911392405 | L180: 773.9 | M180: 97.96202532 | N180: 342.3 | O180: 25.9 | P180: 33.1 | Q180: 34.7 | R180: 11.7 | S180: 447.7 | T180: 0.1317846772
A181: Team H | B181: Andrew | C181: Product 2 | D181: 2014-09-01 | E181: Arizona | F181: Southwest | G181: 7.9 | H181: 7.4 | I181: 0.5 | J181: 23 | K181: 2.911392405 | L181: 608.8 | M181: 77.06329114 | N181: 380 | O181: 26.5 | P181: 34.4 | Q181: 36.7 | R181: 12.9 | S181: 490.5 | T181: 0.1241590214
A182: Team H | B182: Regina | C182: Product 2 | D182: 2014-06-01 | E182: New Mexico | F182: Southwest | G182: 7 | H182: 6 | I182: 1 | J182: 20 | K182: 2.857142857 | L182: 680 | M182: 97.14285714 | N182: 372 | O182: 21 | P182: 39 | Q182: 35 | R182: 13 | S182: 480 | T182: 0.125
A183: Team H | B183: Dai | C183: Product 1 | D183: 2014-07-01 | E183: New Mexico | F183: Southwest | G183: 7.6 | H183: 6.6 | I183: 1 | J183: 16 | K183: 2.105263158 | L183: 544 | M183: 71.57894737 | N183: 336 | O183: 23 | P183: 38 | Q183: 35 | R183: 10 | S183: 442 | T183: 0.1380090498
A184: Team H | B184: Alfred | C184: Product 1 | D184: 2014-08-01 | E184: New Mexico | F184: Southwest | G184: 7.3 | H184: 7 | I184: 0.3 | J184: 16.5 | K184: 2.260273973 | L184: 658.1 | M184: 90.15068493 | N184: 363.7 | O184: 20.5 | P184: 34.3 | Q184: 33.5 | R184: 14.9 | S184: 466.9 | T184: 0.1173698865
A185: Team H | B185: Arthur | C185: Product 2 | D185: 2014-09-01 | E185: New Mexico | F185: Southwest | G185: 7.3 | H185: 6.5 | I185: 0.8 | J185: 17.3 | K185: 2.369863014 | L185: 666.2 | M185: 91.26027397 | N185: 333 | O185: 23.1 | P185: 38.8 | Q185: 31.3 | R185: 10.7 | S185: 436.9 | T185: 0.1416800183
A186: Team H | B186: Addison | C186: Product 2 | D186: 2014-06-01 | E186: Oklahoma | F186: Southwest | G186: 8 | H186: 7 | I186: 1 | J186: 18 | K186: 2.25 | L186: 612 | M186: 76.5 | N186: 350 | O186: 29 | P186: 30 | Q186: 32 | R186: 12 | S186: 453 | T186: 0.1302428256
A187: Team H | B187: Galena | C187: Product 1 | D187: 2014-07-01 | E187: Oklahoma | F187: Southwest | G187: 7.5 | H187: 6.5 | I187: 1 | J187: 17 | K187: 2.266666667 | L187: 578 | M187: 77.06666667 | N187: 397 | O187: 29 | P187: 31 | Q187: 32 | R187: 10 | S187: 499 | T187: 0.120240481
A188: Team H | B188: Alonso | C188: Product 1 | D188: 2014-08-01 | E188: Oklahoma | F188: Southwest | G188: 8.1 | H188: 7.4 | I188: 0.7 | J188: 19.6 | K188: 2.419753086 | L188: 826.8 | M188: 102.0740741 | N188: 366.5 | O188: 28.4 | P188: 30.2 | Q188: 36 | R188: 12.7 | S188: 473.8 | T188: 0.123680878
A189: Team H | B189: August | C189: Product 2 | D189: 2014-09-01 | E189: Oklahoma | F189: Southwest | G189: 7.6 | H189: 6.8 | I189: 0.8 | J189: 22.5 | K189: 2.960526316 | L189: 772.4 | M189: 101.6315789 | N189: 315.4 | O189: 20.7 | P189: 33.6 | Q189: 37 | R189: 11.8 | S189: 418.5 | T189: 0.1297491039
A190: Team H | B190: Ariana | C190: Product 1 | D190: 2014-06-01 | E190: Texas | F190: Southwest | G190: 8.3 | H190: 7.3 | I190: 1 | J190: 24 | K190: 2.891566265 | L190: 816 | M190: 98.31325301 | N190: 369 | O190: 21 | P190: 40 | Q190: 34 | R190: 15 | S190: 479 | T190: 0.127348643
A191: Team H | B191: Camille | C191: Product 2 | D191: 2014-07-01 | E191: Texas | F191: Southwest | G191: 8 | H191: 7 | I191: 1 | J191: 21 | K191: 2.625 | L191: 714 | M191: 89.25 | N191: 348 | O191: 22 | P191: 30 | Q191: 37 | R191: 14 | S191: 451 | T191: 0.1152993348
A192: Team H | B192: Alvin | C192: Product 1 | D192: 2014-08-01 | E192: Texas | F192: Southwest | G192: 7.1 | H192: 6.7 | I192: 0.4 | J192: 22.9 | K192: 3.225352113 | L192: 542.4 | M192: 76.3943662 | N192: 385.9 | O192: 27.5 | P192: 37.8 | Q192: 33.5 | R192: 10.1 | S192: 494.8 | T192: 0.1319725141
A193: Team H | B193: Barrett | C193: Product 2 | D193: 2014-09-01 | E193: Texas | F193: Southwest | G193: 8.3 | H193: 7.7 | I193: 0.6 | J193: 21.1 | K193: 2.542168675 | L193: 758.1 | M193: 91.3373494 | N193: 340.4 | O193: 21.3 | P193: 30.5 | Q193: 32 | R193: 15 | S193: 439.2 | T193: 0.1179417122

Sheet Lookup_Tables (hidden)
A1: Date | B1: 3 | E1: Metric | F1: 5 | I1: Geo | J1: 2 | M1: Chart Type | N1: 1 | Q1: Login Hours | R1: Talk Time | S1: Hold Time
A2: Result | B2: =VLOOKUP(B1,A3:B6,2,0) -> 2014-08-01 | C2: =VLOOKUP(B1,A3:C6,3,0) -> August 2014 | E2: Result | F2: =VLOOKUP(F1,E3:F12,2,0) -> Revenue | I2: Result | J2: =VLOOKUP(J1,I3:J4,2,0) -> By Team | M2: Result | N2: =VLOOKUP(N1,M3:N5,2,0) -> Hours | Q2: Sales | R2: Sales/Hour | S2: Revenue | T2: Revenue/Hour
A3: 1 | B3: 2014-06-01 | C3: June 2014 | E3: 1 | F3: Login Hours | I3: 1 | J3: By State | M3: 1 | N3: Hours | P3: OOO | Q3: Total Calls | R3: % Excellent | S3: % Good | T3: % Fair | U3: % Poor
A4: 2 | B4: 2014-07-01 | C4: July 2014 | E4: 2 | F4: Total Talk Time | I4: 2 | J4: By Team | M4: 2 | N4: Sales
A5: 3 | B5: 2014-08-01 | C5: August 2014 | E5: 3 | F5: Total Hold Time | M5: 3 | N5: Calls
A6: 4 | B6: 2014-09-01 | C6: Sept. 2014 | E6: 4 | F6: Sales
E7: 5 | F7: Revenue
E8: 6 | F8: Total Calls
E9: 7 | F9: Excellent Calls
E10: 8 | F10: Good Calls
E11: 9 | F11: Fair Calls
E12: 10 | F12: Poor Calls

Sheet Data (hidden)
B2: Data
A4: Region | B4: No. | C4: State | D4: Abbreviation | E4: Metric
A5: Southeast | B5: 1 | C5: Alabama | D5: AL | E5: =IF(Lookup_Tables!$J$1=1,SUMIFS(OFFSET(LinkData!A:A,0,MATCH(Lookup_Tables!$F$2,LinkData!$A$1:$Y$1,0)-1),LinkData!E:E,Data!C5,LinkData!D:D,Lookup_Tables!$B$2),SUMIFS(OFFSET(LinkData!A:A,0,MATCH(Lookup_Tables!$F$2,LinkData!$A$1:$Y$1,0)-1),LinkData!F:F,Data!A5,LinkData!D:D,Lookup_Tables!$B$2)) -> 5098.26625
A6: Southeast | B6: =B5+1 -> 2 | C6: Arkansas | D6: AR | E6: =IF(Lookup_Tables!$J$1=1,SUMIFS(OFFSET(LinkData!A:A,0,MATCH(Lookup_Tables!$F$2,LinkData!$A$1:$Y$1,0)-1),LinkData!E:E,Data!C6,LinkData!D:D,Lookup_Tables!$B$2),SUMIFS(OFFSET(LinkData!A:A,0,MATCH(Lookup_Tables!$F$2,LinkData!$A$1:$Y$1,0)-1),LinkData!F:F,Data!A6,LinkData!D:D,Lookup_Tables!$B$2)) -> 5098.26625
A7: Southwest | B7: 3 | C7: Arizona | D7: AZ | E7: =IF(Lookup_Tables!$J$1=1,SUMIFS(OFFSET(LinkData!A:A,0,MATCH(Lookup_Tables!$F$2,LinkData!$A$1:$Y$1,0)-1),LinkData!E:E,Data!C7,LinkData!D:D,Lookup_Tables!$B$2),SUMIFS(OFFSET(LinkData!A:A,0,MATCH(Lookup_Tables!$F$2,LinkData!$A$1:$Y$1,0)-1),LinkData!F:F,Data!A7,LinkData!D:D,Lookup_Tables!$B$2)) -> 2801.2
A8: Far West | B8: 4 | C8: California | D8: CA | E8: =IF(Lookup_Tables!$J$1=1,SUMIFS(OFFSET(LinkData!A:A,0,MATCH(Lookup_Tables!$F$2,LinkData!$A$1:$Y$1,0)-1),LinkData!E:E,Data!C8,LinkData!D:D,Lookup_Tables!$B$2),SUMIFS(OFFSET(LinkData!A:A,0,MATCH(Lookup_Tables!$F$2,LinkData!$A$1:$Y$1,0)-1),LinkData!F:F,Data!A8,LinkData!D:D,Lookup_Tables!$B$2)) -> 2736.9
A9: Rocky Mountain | B9: 5 | C9: Colorado | D9: CO | E9: =IF(Lookup_Tables!$J$1=1,SUMIFS(OFFSET(LinkData!A:A,0,MATCH(Lookup_Tables!$F$2,LinkData!$A$1:$Y$1,0)-1),LinkData!E:E,Data!C9,LinkData!D:D,Lookup_Tables!$B$2),SUMIFS(OFFSET(LinkData!A:A,0,MATCH(Lookup_Tables!$F$2,LinkData!$A$1:$Y$1,0)-1),LinkData!F:F,Data!A9,LinkData!D:D,Lookup_Tables!$B$2)) -> 3580
A10: New England | B10: 6 | C10: Connecticut | D10: CT | E10: =IF(Lookup_Tables!$J$1=1,SUMIFS(OFFSET(LinkData!A:A,0,MATCH(Lookup_Tables!$F$2,LinkData!$A$1:$Y$1,0)-1),LinkData!E:E,Data!C10,LinkData!D:D,Lookup_Tables!$B$2),SUMIFS(OFFSET(LinkData!A:A,0,MATCH(Lookup_Tables!$F$2,LinkData!$A$1:$Y$1,0)-1),LinkData!F:F,Data!A10,LinkData!D:D,Lookup_Tables!$B$2)) -> 4000.6
A11: Mideast | B11: 7 | C11: Delaware | D11: DE | E11: =IF(Lookup_Tables!$J$1=1,SUMIFS(OFFSET(LinkData!A:A,0,MATCH(Lookup_Tables!$F$2,LinkData!$A$1:$Y$1,0)-1),LinkData!E:E,Data!C11,LinkData!D:D,Lookup_Tables!$B$2),SUMIFS(OFFSET(LinkData!A:A,0,MATCH(Lookup_Tables!$F$2,LinkData!$A$1:$Y$1,0)-1),LinkData!F:F,Data!A11,LinkData!D:D,Lookup_Tables!$B$2)) -> 3685.4
A12: Southeast | B12: 8 | C12: Florida | D12: FL | E12: =IF(Lookup_Tables!$J$1=1,SUMIFS(OFFSET(LinkData!A:A,0,MATCH(Lookup_Tables!$F$2,LinkData!$A$1:$Y$1,0)-1),LinkData!E:E,Data!C12,LinkData!D:D,Lookup_Tables!$B$2),SUMIFS(OFFSET(LinkData!A:A,0,MATCH(Lookup_Tables!$F$2,LinkData!$A$1:$Y$1,0)-1),LinkData!F:F,Data!A12,LinkData!D:D,Lookup_Tables!$B$2)) -> 5098.26625
A13: Southeast | B13: 9 | C13: Georgia | D13: GA | E13: =IF(Lookup_Tables!$J$1=1,SUMIFS(OFFSET(LinkData!A:A,0,MATCH(Lookup_Tables!$F$2,LinkData!$A$1:$Y$1,0)-1),LinkData!E:E,Data!C13,LinkData!D:D,Lookup_Tables!$B$2),SUMIFS(OFFSET(LinkData!A:A,0,MATCH(Lookup_Tables!$F$2,LinkData!$A$1:$Y$1,0)-1),LinkData!F:F,Data!A13,LinkData!D:D,Lookup_Tables!$B$2)) -> 5098.26625
A14: Plains | B14: 10 | C14: Iowa | D14: IA | E14: =IF(Lookup_Tables!$J$1=1,SUMIFS(OFFSET(LinkData!A:A,0,MATCH(Lookup_Tables!$F$2,LinkData!$A$1:$Y$1,0)-1),LinkData!E:E,Data!C14,LinkData!D:D,Lookup_Tables!$B$2),SUMIFS(OFFSET(LinkData!A:A,0,MATCH(Lookup_Tables!$F$2,LinkData!$A$1:$Y$1,0)-1),LinkData!F:F,Data!A14,LinkData!D:D,Lookup_Tables!$B$2)) -> 4416.3
A15: Rocky Mountain | B15: 11 | C15: Idaho | D15: ID | E15: =IF(Lookup_Tables!$J$1=1,SUMIFS(OFFSET(LinkData!A:A,0,MATCH(Lookup_Tables!$F$2,LinkData!$A$1:$Y$1,0)-1),LinkData!E:E,Data!C15,LinkData!D:D,Lookup_Tables!$B$2),SUMIFS(OFFSET(LinkData!A:A,0,MATCH(Lookup_Tables!$F$2,LinkData!$A$1:$Y$1,0)-1),LinkData!F:F,Data!A15,LinkData!D:D,Lookup_Tables!$B$2)) -> 3580
A16: Great Lakes | B16: 12 | C16: Illinois | D16: IL | E16: =IF(Lookup_Tables!$J$1=1,SUMIFS(OFFSET(LinkData!A:A,0,MATCH(Lookup_Tables!$F$2,LinkData!$A$1:$Y$1,0)-1),LinkData!E:E,Data!C16,LinkData!D:D,Lookup_Tables!$B$2),SUMIFS(OFFSET(LinkData!A:A,0,MATCH(Lookup_Tables!$F$2,LinkData!$A$1:$Y$1,0)-1),LinkData!F:F,Data!A16,LinkData!D:D,Lookup_Tables!$B$2)) -> 3377.5
A17: Great Lakes | B17: 13 | C17: Indiana | D17: IN | E17: =IF(Lookup_Tables!$J$1=1,SUMIFS(OFFSET(LinkData!A:A,0,MATCH(Lookup_Tables!$F$2,LinkData!$A$1:$Y$1,0)-1),LinkData!E:E,Data!C17,LinkData!D:D,Lookup_Tables!$B$2),SUMIFS(OFFSET(LinkData!A:A,0,MATCH(Lookup_Tables!$F$2,LinkData!$A$1:$Y$1,0)-1),LinkData!F:F,Data!A17,LinkData!D:D,Lookup_Tables!$B$2)) -> 3377.5
A18: Plains | B18: 14 | C18: Kansas | D18: KS | E18: =IF(Lookup_Tables!$J$1=1,SUMIFS(OFFSET(LinkData!A:A,0,MATCH(Lookup_Tables!$F$2,LinkData!$A$1:$Y$1,0)-1),LinkData!E:E,Data!C18,LinkData!D:D,Lookup_Tables!$B$2),SUMIFS(OFFSET(LinkData!A:A,0,MATCH(Lookup_Tables!$F$2,LinkData!$A$1:$Y$1,0)-1),LinkData!F:F,Data!A18,LinkData!D:D,Lookup_Tables!$B$2)) -> 4416.3
A19: Southeast | B19: 15 | C19: Kentucky | D19: KY | E19: =IF(Lookup_Tables!$J$1=1,SUMIFS(OFFSET(LinkData!A:A,0,MATCH(Lookup_Tables!$F$2,LinkData!$A$1:$Y$1,0)-1),LinkData!E:E,Data!C19,LinkData!D:D,Lookup_Tables!$B$2),SUMIFS(OFFSET(LinkData!A:A,0,MATCH(Lookup_Tables!$F$2,LinkData!$A$1:$Y$1,0)-1),LinkData!F:F,Data!A19,LinkData!D:D,Lookup_Tables!$B$2)) -> 5098.26625
A20: Southeast | B20: 16 | C20: Louisiana | D20: LA | E20: =IF(Lookup_Tables!$J$1=1,SUMIFS(OFFSET(LinkData!A:A,0,MATCH(Lookup_Tables!$F$2,LinkData!$A$1:$Y$1,0)-1),LinkData!E:E,Data!C20,LinkData!D:D,Lookup_Tables!$B$2),SUMIFS(OFFSET(LinkData!A:A,0,MATCH(Lookup_Tables!$F$2,LinkData!$A$1:$Y$1,0)-1),LinkData!F:F,Data!A20,LinkData!D:D,Lookup_Tables!$B$2)) -> 5098.26625
A21: New England | B21: 17 | C21: Massachusetts | D21: MA | E21: =IF(Lookup_Tables!$J$1=1,SUMIFS(OFFSET(LinkData!A:A,0,MATCH(Lookup_Tables!$F$2,LinkData!$A$1:$Y$1,0)-1),LinkData!E:E,Data!C21,LinkData!D:D,Lookup_Tables!$B$2),SUMIFS(OFFSET(LinkData!A:A,0,MATCH(Lookup_Tables!$F$2,LinkData!$A$1:$Y$1,0)-1),LinkData!F:F,Data!A21,LinkData!D:D,Lookup_Tables!$B$2)) -> 4000.6
A22: Mideast | B22: 18 | C22: Maryland | D22: MD | E22: =IF(Lookup_Tables!$J$1=1,SUMIFS(OFFSET(LinkData!A:A,0,MATCH(Lookup_Tables!$F$2,LinkData!$A$1:$Y$1,0)-1),LinkData!E:E,Data!C22,LinkData!D:D,Lookup_Tables!$B$2),SUMIFS(OFFSET(LinkData!A:A,0,MATCH(Lookup_Tables!$F$2,LinkData!$A$1:$Y$1,0)-1),LinkData!F:F,Data!A22,LinkData!D:D,Lookup_Tables!$B$2)) -> 3685.4
A23: New England | B23: 19 | C23: Maine | D23: ME | E23: =IF(Lookup_Tables!$J$1=1,SUMIFS(OFFSET(LinkData!A:A,0,MATCH(Lookup_Tables!$F$2,LinkData!$A$1:$Y$1,0)-1),LinkData!E:E,Data!C23,LinkData!D:D,Lookup_Tables!$B$2),SUMIFS(OFFSET(LinkData!A:A,0,MATCH(Lookup_Tables!$F$2,LinkData!$A$1:$Y$1,0)-1),LinkData!F:F,Data!A23,LinkData!D:D,Lookup_Tables!$B$2)) -> 4000.6
A24: Great Lakes | B24: 20 | C24: Michigan | D24: MI | E24: =IF(Lookup_Tables!$J$1=1,SUMIFS(OFFSET(LinkData!A:A,0,MATCH(Lookup_Tables!$F$2,LinkData!$A$1:$Y$1,0)-1),LinkData!E:E,Data!C24,LinkData!D:D,Lookup_Tables!$B$2),SUMIFS(OFFSET(LinkData!A:A,0,MATCH(Lookup_Tables!$F$2,LinkData!$A$1:$Y$1,0)-1),LinkData!F:F,Data!A24,LinkData!D:D,Lookup_Tables!$B$2)) -> 3377.5
A25: Plains | B25: 21 | C25: Minnesota | D25: MN | E25: =IF(Lookup_Tables!$J$1=1,SUMIFS(OFFSET(LinkData!A:A,0,MATCH(Lookup_Tables!$F$2,LinkData!$A$1:$Y$1,0)-1),LinkData!E:E,Data!C25,LinkData!D:D,Lookup_Tables!$B$2),SUMIFS(OFFSET(LinkData!A:A,0,MATCH(Lookup_Tables!$F$2,LinkData!$A$1:$Y$1,0)-1),LinkData!F:F,Data!A25,LinkData!D:D,Lookup_Tables!$B$2)) -> 4416.3
A26: Plains | B26: 22 | C26: Missouri | D26: MO | E26: =IF(Lookup_Tables!$J$1=1,SUMIFS(OFFSET(LinkData!A:A,0,MATCH(Lookup_Tables!$F$2,LinkData!$A$1:$Y$1,0)-1),LinkData!E:E,Data!C26,LinkData!D:D,Lookup_Tables!$B$2),SUMIFS(OFFSET(LinkData!A:A,0,MATCH(Lookup_Tables!$F$2,LinkData!$A$1:$Y$1,0)-1),LinkData!F:F,Data!A26,LinkData!D:D,Lookup_Tables!$B$2)) -> 4416.3
A27: Southeast | B27: 23 | C27: Mississippi | D27: MS | E27: =IF(Lookup_Tables!$J$1=1,SUMIFS(OFFSET(LinkData!A:A,0,MATCH(Lookup_Tables!$F$2,LinkData!$A$1:$Y$1,0)-1),LinkData!E:E,Data!C27,LinkData!D:D,Lookup_Tables!$B$2),SUMIFS(OFFSET(LinkData!A:A,0,MATCH(Lookup_Tables!$F$2,LinkData!$A$1:$Y$1,0)-1),LinkData!F:F,Data!A27,LinkData!D:D,Lookup_Tables!$B$2)) -> 5098.26625
A28: Rocky Mountain | B28: 24 | C28: Montana | D28: MT | E28: =IF(Lookup_Tables!$J$1=1,SUMIFS(OFFSET(LinkData!A:A,0,MATCH(Lookup_Tables!$F$2,LinkData!$A$1:$Y$1,0)-1),LinkData!E:E,Data!C28,LinkData!D:D,Lookup_Tables!$B$2),SUMIFS(OFFSET(LinkData!A:A,0,MATCH(Lookup_Tables!$F$2,LinkData!$A$1:$Y$1,0)-1),LinkData!F:F,Data!A28,LinkData!D:D,Lookup_Tables!$B$2)) -> 3580
A29: Southeast | B29: 25 | C29: North Carolina | D29: NC | E29: =IF(Lookup_Tables!$J$1=1,SUMIFS(OFFSET(LinkData!A:A,0,MATCH(Lookup_Tables!$F$2,LinkData!$A$1:$Y$1,0)-1),LinkData!E:E,Data!C29,LinkData!D:D,Lookup_Tables!$B$2),SUMIFS(OFFSET(LinkData!A:A,0,MATCH(Lookup_Tables!$F$2,LinkData!$A$1:$Y$1,0)-1),LinkData!F:F,Data!A29,LinkData!D:D,Lookup_Tables!$B$2)) -> 5098.26625
A30: Plains | B30: 26 | C30: North Dakota | D30: ND | E30: =IF(Lookup_Tables!$J$1=1,SUMIFS(OFFSET(LinkData!A:A,0,MATCH(Lookup_Tables!$F$2,LinkData!$A$1:$Y$1,0)-1),LinkData!E:E,Data!C30,LinkData!D:D,Lookup_Tables!$B$2),SUMIFS(OFFSET(LinkData!A:A,0,MATCH(Lookup_Tables!$F$2,LinkData!$A$1:$Y$1,0)-1),LinkData!F:F,Data!A30,LinkData!D:D,Lookup_Tables!$B$2)) -> 4416.3
A31: Plains | B31: 27 | C31: Nebraska | D31: NE | E31: =IF(Lookup_Tables!$J$1=1,SUMIFS(OFFSET(LinkData!A:A,0,MATCH(Lookup_Tables!$F$2,LinkData!$A$1:$Y$1,0)-1),LinkData!E:E,Data!C31,LinkData!D:D,Lookup_Tables!$B$2),SUMIFS(OFFSET(LinkData!A:A,0,MATCH(Lookup_Tables!$F$2,LinkData!$A$1:$Y$1,0)-1),LinkData!F:F,Data!A31,LinkData!D:D,Lookup_Tables!$B$2)) -> 4416.3
A32: New England | B32: 28 | C32: New Hampshire | D32: NH | E32: =IF(Lookup_Tables!$J$1=1,SUMIFS(OFFSET(LinkData!A:A,0,MATCH(Lookup_Tables!$F$2,LinkData!$A$1:$Y$1,0)-1),LinkData!E:E,Data!C32,LinkData!D:D,Lookup_Tables!$B$2),SUMIFS(OFFSET(LinkData!A:A,0,MATCH(Lookup_Tables!$F$2,LinkData!$A$1:$Y$1,0)-1),LinkData!F:F,Data!A32,LinkData!D:D,Lookup_Tables!$B$2)) -> 4000.6
A33: Mideast | B33: 29 | C33: New Jersey | D33: NJ | E33: =IF(Lookup_Tables!$J$1=1,SUMIFS(OFFSET(LinkData!A:A,0,MATCH(Lookup_Tables!$F$2,LinkData!$A$1:$Y$1,0)-1),LinkData!E:E,Data!C33,LinkData!D:D,Lookup_Tables!$B$2),SUMIFS(OFFSET(LinkData!A:A,0,MATCH(Lookup_Tables!$F$2,LinkData!$A$1:$Y$1,0)-1),LinkData!F:F,Data!A33,LinkData!D:D,Lookup_Tables!$B$2)) -> 3685.4
A34: Southwest | B34: 30 | C34: New Mexico | D34: NM | E34: =IF(Lookup_Tables!$J$1=1,SUMIFS(OFFSET(LinkData!A:A,0,MATCH(Lookup_Tables!$F$2,LinkData!$A$1:$Y$1,0)-1),LinkData!E:E,Data!C34,LinkData!D:D,Lookup_Tables!$B$2),SUMIFS(OFFSET(LinkData!A:A,0,MATCH(Lookup_Tables!$F$2,LinkData!$A$1:$Y$1,0)-1),LinkData!F:F,Data!A34,LinkData!D:D,Lookup_Tables!$B$2)) -> 2801.2
A35: Far West | B35: 31 | C35: Nevada | D35: NV | E35: =IF(Lookup_Tables!$J$1=1,SUMIFS(OFFSET(LinkData!A:A,0,MATCH(Lookup_Tables!$F$2,LinkData!$A$1:$Y$1,0)-1),LinkData!E:E,Data!C35,LinkData!D:D,Lookup_Tables!$B$2),SUMIFS(OFFSET(LinkData!A:A,0,MATCH(Lookup_Tables!$F$2,LinkData!$A$1:$Y$1,0)-1),LinkData!F:F,Data!A35,LinkData!D:D,Lookup_Tables!$B$2)) -> 2736.9
A36: Mideast | B36: 32 | C36: New York | D36: NY | E36: =IF(Lookup_Tables!$J$1=1,SUMIFS(OFFSET(LinkData!A:A,0,MATCH(Lookup_Tables!$F$2,LinkData!$A$1:$Y$1,0)-1),LinkData!E:E,Data!C36,LinkData!D:D,Lookup_Tables!$B$2),SUMIFS(OFFSET(LinkData!A:A,0,MATCH(Lookup_Tables!$F$2,LinkData!$A$1:$Y$1,0)-1),LinkData!F:F,Data!A36,LinkData!D:D,Lookup_Tables!$B$2)) -> 3685.4
A37: Great Lakes | B37: 33 | C37: Ohio | D37: OH | E37: =IF(Lookup_Tables!$J$1=1,SUMIFS(OFFSET(LinkData!A:A,0,MATCH(Lookup_Tables!$F$2,LinkData!$A$1:$Y$1,0)-1),LinkData!E:E,Data!C37,LinkData!D:D,Lookup_Tables!$B$2),SUMIFS(OFFSET(LinkData!A:A,0,MATCH(Lookup_Tables!$F$2,LinkData!$A$1:$Y$1,0)-1),LinkData!F:F,Data!A37,LinkData!D:D,Lookup_Tables!$B$2)) -> 3377.5
A38: Southwest | B38: 34 | C38: Oklahoma | D38: OK | E38: =IF(Lookup_Tables!$J$1=1,SUMIFS(OFFSET(LinkData!A:A,0,MATCH(Lookup_Tables!$F$2,LinkData!$A$1:$Y$1,0)-1),LinkData!E:E,Data!C38,LinkData!D:D,Lookup_Tables!$B$2),SUMIFS(OFFSET(LinkData!A:A,0,MATCH(Lookup_Tables!$F$2,LinkData!$A$1:$Y$1,0)-1),LinkData!F:F,Data!A38,LinkData!D:D,Lookup_Tables!$B$2)) -> 2801.2
A39: Far West | B39: 35 | C39: Oregon | D39: OR | E39: =IF(Lookup_Tables!$J$1=1,SUMIFS(OFFSET(LinkData!A:A,0,MATCH(Lookup_Tables!$F$2,LinkData!$A$1:$Y$1,0)-1),LinkData!E:E,Data!C39,LinkData!D:D,Lookup_Tables!$B$2),SUMIFS(OFFSET(LinkData!A:A,0,MATCH(Lookup_Tables!$F$2,LinkData!$A$1:$Y$1,0)-1),LinkData!F:F,Data!A39,LinkData!D:D,Lookup_Tables!$B$2)) -> 2736.9
A40: Mideast | B40: 36 | C40: Pennsylvania | D40: PA | E40: =IF(Lookup_Tables!$J$1=1,SUMIFS(OFFSET(LinkData!A:A,0,MATCH(Lookup_Tables!$F$2,LinkData!$A$1:$Y$1,0)-1),LinkData!E:E,Data!C40,LinkData!D:D,Lookup_Tables!$B$2),SUMIFS(OFFSET(LinkData!A:A,0,MATCH(Lookup_Tables!$F$2,LinkData!$A$1:$Y$1,0)-1),LinkData!F:F,Data!A40,LinkData!D:D,Lookup_Tables!$B$2)) -> 3685.4
A41: New England | B41: 37 | C41: Rhode Island | D41: RI | E41: =IF(Lookup_Tables!$J$1=1,SUMIFS(OFFSET(LinkData!A:A,0,MATCH(Lookup_Tables!$F$2,LinkData!$A$1:$Y$1,0)-1),LinkData!E:E,Data!C41,LinkData!D:D,Lookup_Tables!$B$2),SUMIFS(OFFSET(LinkData!A:A,0,MATCH(Lookup_Tables!$F$2,LinkData!$A$1:$Y$1,0)-1),LinkData!F:F,Data!A41,LinkData!D:D,Lookup_Tables!$B$2)) -> 4000.6
A42: Southeast | B42: 38 | C42: South Carolina | D42: SC | E42: =IF(Lookup_Tables!$J$1=1,SUMIFS(OFFSET(LinkData!A:A,0,MATCH(Lookup_Tables!$F$2,LinkData!$A$1:$Y$1,0)-1),LinkData!E:E,Data!C42,LinkData!D:D,Lookup_Tables!$B$2),SUMIFS(OFFSET(LinkData!A:A,0,MATCH(Lookup_Tables!$F$2,LinkData!$A$1:$Y$1,0)-1),LinkData!F:F,Data!A42,LinkData!D:D,Lookup_Tables!$B$2)) -> 5098.26625
A43: Plains | B43: 39 | C43: South Dakota | D43: SD | E43: =IF(Lookup_Tables!$J$1=1,SUMIFS(OFFSET(LinkData!A:A,0,MATCH(Lookup_Tables!$F$2,LinkData!$A$1:$Y$1,0)-1),LinkData!E:E,Data!C43,LinkData!D:D,Lookup_Tables!$B$2),SUMIFS(OFFSET(LinkData!A:A,0,MATCH(Lookup_Tables!$F$2,LinkData!$A$1:$Y$1,0)-1),LinkData!F:F,Data!A43,LinkData!D:D,Lookup_Tables!$B$2)) -> 4416.3
A44: Southeast | B44: 40 | C44: Tennessee | D44: TN | E44: =IF(Lookup_Tables!$J$1=1,SUMIFS(OFFSET(LinkData!A:A,0,MATCH(Lookup_Tables!$F$2,LinkData!$A$1:$Y$1,0)-1),LinkData!E:E,Data!C44,LinkData!D:D,Lookup_Tables!$B$2),SUMIFS(OFFSET(LinkData!A:A,0,MATCH(Lookup_Tables!$F$2,LinkData!$A$1:$Y$1,0)-1),LinkData!F:F,Data!A44,LinkData!D:D,Lookup_Tables!$B$2)) -> 5098.26625
A45: Southwest | B45: 41 | C45: Texas | D45: TX | E45: =IF(Lookup_Tables!$J$1=1,SUMIFS(OFFSET(LinkData!A:A,0,MATCH(Lookup_Tables!$F$2,LinkData!$A$1:$Y$1,0)-1),LinkData!E:E,Data!C45,LinkData!D:D,Lookup_Tables!$B$2),SUMIFS(OFFSET(LinkData!A:A,0,MATCH(Lookup_Tables!$F$2,LinkData!$A$1:$Y$1,0)-1),LinkData!F:F,Data!A45,LinkData!D:D,Lookup_Tables!$B$2)) -> 2801.2
A46: Rocky Mountain | B46: 42 | C46: Utah | D46: UT | E46: =IF(Lookup_Tables!$J$1=1,SUMIFS(OFFSET(LinkData!A:A,0,MATCH(Lookup_Tables!$F$2,LinkData!$A$1:$Y$1,0)-1),LinkData!E:E,Data!C46,LinkData!D:D,Lookup_Tables!$B$2),SUMIFS(OFFSET(LinkData!A:A,0,MATCH(Lookup_Tables!$F$2,LinkData!$A$1:$Y$1,0)-1),LinkData!F:F,Data!A46,LinkData!D:D,Lookup_Tables!$B$2)) -> 3580
A47: Southeast | B47: 43 | C47: Virginia | D47: VA | E47: =IF(Lookup_Tables!$J$1=1,SUMIFS(OFFSET(LinkData!A:A,0,MATCH(Lookup_Tables!$F$2,LinkData!$A$1:$Y$1,0)-1),LinkData!E:E,Data!C47,LinkData!D:D,Lookup_Tables!$B$2),SUMIFS(OFFSET(LinkData!A:A,0,MATCH(Lookup_Tables!$F$2,LinkData!$A$1:$Y$1,0)-1),LinkData!F:F,Data!A47,LinkData!D:D,Lookup_Tables!$B$2)) -> 5098.26625
A48: New England | B48: 44 | C48: Vermont | D48: VT | E48: =IF(Lookup_Tables!$J$1=1,SUMIFS(OFFSET(LinkData!A:A,0,MATCH(Lookup_Tables!$F$2,LinkData!$A$1:$Y$1,0)-1),LinkData!E:E,Data!C48,LinkData!D:D,Lookup_Tables!$B$2),SUMIFS(OFFSET(LinkData!A:A,0,MATCH(Lookup_Tables!$F$2,LinkData!$A$1:$Y$1,0)-1),LinkData!F:F,Data!A48,LinkData!D:D,Lookup_Tables!$B$2)) -> 4000.6
A49: Far West | B49: 45 | C49: Washington | D49: WA | E49: =IF(Lookup_Tables!$J$1=1,SUMIFS(OFFSET(LinkData!A:A,0,MATCH(Lookup_Tables!$F$2,LinkData!$A$1:$Y$1,0)-1),LinkData!E:E,Data!C49,LinkData!D:D,Lookup_Tables!$B$2),SUMIFS(OFFSET(LinkData!A:A,0,MATCH(Lookup_Tables!$F$2,LinkData!$A$1:$Y$1,0)-1),LinkData!F:F,Data!A49,LinkData!D:D,Lookup_Tables!$B$2)) -> 2736.9
A50: Great Lakes | B50: 46 | C50: Wisconsin | D50: WI | E50: =IF(Lookup_Tables!$J$1=1,SUMIFS(OFFSET(LinkData!A:A,0,MATCH(Lookup_Tables!$F$2,LinkData!$A$1:$Y$1,0)-1),LinkData!E:E,Data!C50,LinkData!D:D,Lookup_Tables!$B$2),SUMIFS(OFFSET(LinkData!A:A,0,MATCH(Lookup_Tables!$F$2,LinkData!$A$1:$Y$1,0)-1),LinkData!F:F,Data!A50,LinkData!D:D,Lookup_Tables!$B$2)) -> 3377.5
A51: Southeast | B51: 47 | C51: West Virginia | D51: WV | E51: =IF(Lookup_Tables!$J$1=1,SUMIFS(OFFSET(LinkData!A:A,0,MATCH(Lookup_Tables!$F$2,LinkData!$A$1:$Y$1,0)-1),LinkData!E:E,Data!C51,LinkData!D:D,Lookup_Tables!$B$2),SUMIFS(OFFSET(LinkData!A:A,0,MATCH(Lookup_Tables!$F$2,LinkData!$A$1:$Y$1,0)-1),LinkData!F:F,Data!A51,LinkData!D:D,Lookup_Tables!$B$2)) -> 5098.26625
A52: Rocky Mountain | B52: 48 | C52: Wyoming | D52: WY | E52: =IF(Lookup_Tables!$J$1=1,SUMIFS(OFFSET(LinkData!A:A,0,MATCH(Lookup_Tables!$F$2,LinkData!$A$1:$Y$1,0)-1),LinkData!E:E,Data!C52,LinkData!D:D,Lookup_Tables!$B$2),SUMIFS(OFFSET(LinkData!A:A,0,MATCH(Lookup_Tables!$F$2,LinkData!$A$1:$Y$1,0)-1),LinkData!F:F,Data!A52,LinkData!D:D,Lookup_Tables!$B$2)) -> 3580

Sheet Control (hidden)
C2: Control: Don't Touch
C12: Darkness | D12: 5 | E12: the smaller the darker (max: 5,21)
C14: Steps | D14: Threshold | E14: RGB | F14: Min / Max
C15: =C16+$D$12 -> 245 | D15: =F16 -> 2736.9 | E15: =udf_RGB(255,165+C15/3.27,C15) -> 16118015 | F15: =MAX(Data!$E$5:$E$52) -> 5098.26625
C16: 240 | D16: =D15+$F$17 -> 2786.09513 | E16: 15789823 | F16: =MIN(Data!$E$5:$E$52) -> 2736.9
C17: 235 | D17: 2835.29026 | E17: 15461887 | F17: =(F15-F16)/(COUNT($C$15:$C$64)-2) -> 49.19513021
C18: 230 | D18: 2884.485391 | E18: 15133695
C19: 225 | D19: 2933.680521 | E19: 14805759
C20: 220 | D20: 2982.875651 | E20: 14477567
C21: 215 | D21: 3032.070781 | E21: 14149631
C22: 210 | D22: 3081.265911 | E22: 13821439
C23: 205 | D23: 3130.461042 | E23: 13493503
C24: 200 | D24: 3179.656172 | E24: 13165311 | Q24: =240-165 -> 75
C25: 195 | D25: 3228.851302 | E25: 12837375
C26: 190 | D26: 3278.046432 | E26: 12509183
C27: 185 | D27: 3327.241563 | E27: 12181247
C28: 180 | D28: 3376.436693 | E28: 11853055
C29: 175 | D29: 3425.631823 | E29: 11525119 | Q29: =245/75 -> 3.266666667
C30: 170 | D30: 3474.826953 | E30: 11196927
C31: 165 | D31: 3524.022083 | E31: 10868735
C32: 160 | D32: 3573.217214 | E32: 10540799
C33: 155 | D33: 3622.412344 | E33: 10212607
C34: 150 | D34: 3671.607474 | E34: 9884671
C35: 145 | D35: 3720.802604 | E35: 9556479
C36: 140 | D36: 3769.997734 | E36: 9228543
C37: 135 | D37: 3819.192865 | E37: 8900351
C38: 130 | D38: 3868.387995 | E38: 8572415
C39: 125 | D39: 3917.583125 | E39: 8244223
C40: 120 | D40: 3966.778255 | E40: 7916287
C41: 115 | D41: 4015.973385 | E41: 7588095
C42: 110 | D42: 4065.168516 | E42: 7260159
C43: 105 | D43: 4114.363646 | E43: 6931967
C44: 100 | D44: 4163.558776 | E44: 6604031
C45: 95 | D45: 4212.753906 | E45: 6275839
C46: 90 | D46: 4261.949036 | E46: 5947903
C47: 85 | D47: 4311.144167 | E47: 5619711
C48: 80 | D48: =D47+$F$17 -> 4360.339297 | E48: 5291519
C49: 75 | D49: 4409.534427 | E49: 4963583
C50: 70 | D50: 4458.729557 | E50: 4635391
C51: 65 | D51: 4507.924688 | E51: 4307455
C52: 60 | D52: 4557.119818 | E52: 3979263
C53: 55 | D53: 4606.314948 | E53: 3651327
C54: 50 | D54: 4655.510078 | E54: 3323135
C55: 45 | D55: 4704.705208 | E55: 2995199
C56: 40 | D56: 4753.900339 | E56: 2667007
C57: 35 | D57: 4803.095469 | E57: 2339071
C58: 30 | D58: 4852.290599 | E58: 2010879
C59: 25 | D59: 4901.485729 | E59: 1682943
C60: 20 | D60: 4950.680859 | E60: 1354751
C61: 15 | D61: 4999.87599 | E61: 1026815
C62: 10 | D62: 5049.07112 | E62: 698623
C63: =C64+$D$12 -> 5 | D63: 5098.26625 | E63: 370687
C64: 0 | D64: 5147.46138 | E64: =udf_RGB(255,165+C64/3.27,C64) -> 42495 | F64: =udf_RGB(C64,C64,C64) -> 0
C66: Name | D66: Autoshape
C67: D_AL | D67: S_AL
C68: D_AR | D68: S_AR
C69: D_AZ | D69: S_AZ
C70: D_CA | D70: S_CA
C71: D_CO | D71: S_CO
C72: D_CT | D72: S_CT | M72: 165
C73: D_DE | D73: S_DE | M73: 240
C74: D_FL | D74: S_FL | M74: =M73-M72 -> 75
C75: D_GA | D75: S_GA
C76: D_IA | D76: S_IA
C77: D_ID | D77: S_ID
C78: D_IL | D78: S_IL
C79: D_IN | D79: S_IN
C80: D_KS | D80: S_KS
C81: D_KY | D81: S_KY
C82: D_LA | D82: S_LA
C83: D_MA | D83: S_MA
C84: D_MD | D84: S_MD
C85: D_ME | D85: S_ME
C86: D_MI | D86: S_MI
C87: D_MN | D87: S_MN
C88: D_MO | D88: S_MO
C89: D_MS | D89: S_MS
C90: D_MT | D90: S_MT
C91: D_NC | D91: S_NC
C92: D_ND | D92: S_ND
C93: D_NE | D93: S_NE
C94: D_NH | D94: S_NH
C95: D_NJ | D95: S_NJ
C96: D_NM | D96: S_NM
C97: D_NV | D97: S_NV
C98: D_NY | D98: S_NY
C99: D_OH | D99: S_OH
C100: D_OK | D100: S_OK
C101: D_OR | D101: S_OR
C102: D_PA | D102: S_PA
C103: D_RI | D103: S_RI
C104: D_SC | D104: S_SC
C105: D_SD | D105: S_SD
C106: D_TN | D106: S_TN
C107: D_TX | D107: S_TX
C108: D_UT | D108: S_UT
C109: D_VA | D109: S_VA
C110: D_VT | D110: S_VT
C111: D_WA | D111: S_WA
C112: D_WI | D112: S_WI
C113: D_WV | D113: S_WV
C114: D_WY | D114: S_WY

Sheet Dashboard
W5: =Lookup_Tables!C2 -> August 2014
M6: Team | N6: =IF(IF(Lookup_Tables!$N$1=1,Lookup_Tables!Q1,IF(Lookup_Tables!$N$1=2,Lookup_Tables!Q2,IF(Lookup_Tables!$N$1=3,Lookup_Tables!Q3,"")))=0,"",IF(Lookup_Tables!$N$1=1,Lookup_Tables!Q1,IF(Lookup_Tables!$N$1=2,Lookup_Tables!Q2,IF(Lookup_Tables!$N$1=3,Lookup_Tables!Q3,"")))) -> Login Hours | O6: =IF(IF(Lookup_Tables!$N$1=1,Lookup_Tables!R1,IF(Lookup_Tables!$N$1=2,Lookup_Tables!R2,IF(Lookup_Tables!$N$1=3,Lookup_Tables!R3,"")))=0,"",IF(Lookup_Tables!$N$1=1,Lookup_Tables!R1,IF(Lookup_Tables!$N$1=2,Lookup_Tables!R2,IF(Lookup_Tables!$N$1=3,Lookup_Tables!R3,"")))) -> Talk Time | P6: =IF(IF(Lookup_Tables!$N$1=1,Lookup_Tables!S1,IF(Lookup_Tables!$N$1=2,Lookup_Tables!S2,IF(Lookup_Tables!$N$1=3,Lookup_Tables!S3,"")))=0,"",IF(Lookup_Tables!$N$1=1,Lookup_Tables!S1,IF(Lookup_Tables!$N$1=2,Lookup_Tables!S2,IF(Lookup_Tables!$N$1=3,Lookup_Tables!S3,"")))) -> Hold Time | Q6: =IF(IF(Lookup_Tables!$N$1=1,Lookup_Tables!T1,IF(Lookup_Tables!$N$1=2,Lookup_Tables!T2,IF(Lookup_Tables!$N$1=3,Lookup_Tables!T3,"")))=0,"",IF(Lookup_Tables!$N$1=1,Lookup_Tables!T1,IF(Lookup_Tables!$N$1=2,Lookup_Tables!T2,IF(Lookup_Tables!$N$1=3,Lookup_Tables!T3,"")))) ->  | R6: =IF(IF(Lookup_Tables!$N$1=1,Lookup_Tables!U1,IF(Lookup_Tables!$N$1=2,Lookup_Tables!U2,IF(Lookup_Tables!$N$1=3,Lookup_Tables!U3,"")))=0,"",IF(Lookup_Tables!$N$1=1,Lookup_Tables!U1,IF(Lookup_Tables!$N$1=2,Lookup_Tables!U2,IF(Lookup_Tables!$N$1=3,Lookup_Tables!U3,"")))) -> 
M7: Team A: Far West | N7: =TEXT(IF(Lookup_Tables!$N$1=1,SUMIF(LinkData!$A:$A,LEFT($M7,6),LinkData!G:G),IF(Lookup_Tables!$N$1=2,SUMIF(LinkData!$A:$A,LEFT($M7,6),LinkData!J:J),IF(Lookup_Tables!$N$1=3,SUMIF(LinkData!$A:$A,LEFT($M7,6),LinkData!S:S)))),"#,##0") -> 137 | O7: =IF(Lookup_Tables!$N$1=1,TEXT(SUMIF(LinkData!$A:$A,LEFT($M7,6),LinkData!H:H),"#,##0"),IF(Lookup_Tables!$N$1=2,N7/SUMIF(LinkData!$A:$A,LEFT($M7,6),LinkData!G:G),IF(Lookup_Tables!$N$1=3,TEXT(SUMIF(LinkData!$A:$A,LEFT($M7,6),LinkData!O:O)/N7,"0.00%")))) -> 111 | P7: =IF(Lookup_Tables!$N$1=1,TEXT(SUMIF(LinkData!$A:$A,LEFT($M7,6),LinkData!I:I),"#,##0"),IF(Lookup_Tables!$N$1=2,TEXT(SUMIF(LinkData!$A:$A,LEFT($M7,6),LinkData!L:L),"$#,##0"),IF(Lookup_Tables!$N$1=3,TEXT(SUMIF(LinkData!$A:$A,LEFT($M7,6),LinkData!P:P)/N7,"0.00%")))) -> 26 | Q7: =IF(Lookup_Tables!$N$1=1,"",IF(Lookup_Tables!$N$1=2,TEXT(P7/SUMIF(LinkData!$A:$A,LEFT($M7,6),LinkData!G:G),"$#,##0.00"),IF(Lookup_Tables!$N$1=3,TEXT(SUMIF(LinkData!$A:$A,LEFT($M7,6),LinkData!Q:Q)/N7,"0.00%")))) ->  | R7: =IF(Lookup_Tables!$N$1=1,"",IF(Lookup_Tables!$N$1=2,"",IF(Lookup_Tables!$N$1=3,TEXT(SUMIF(LinkData!$A:$A,LEFT($M7,6),LinkData!R:R)/N7,"0.00%")))) ->  | W7: =N14/1 -> 123
M8: Team B: Great Lakes | N8: =TEXT(IF(Lookup_Tables!$N$1=1,SUMIF(LinkData!$A:$A,LEFT($M8,6),LinkData!G:G),IF(Lookup_Tables!$N$1=2,SUMIF(LinkData!$A:$A,LEFT($M8,6),LinkData!J:J),IF(Lookup_Tables!$N$1=3,SUMIF(LinkData!$A:$A,LEFT($M8,6),LinkData!S:S)))),"#,##0") -> 152 | O8: =IF(Lookup_Tables!$N$1=1,TEXT(SUMIF(LinkData!$A:$A,LEFT($M8,6),LinkData!H:H),"#,##0"),IF(Lookup_Tables!$N$1=2,N8/SUMIF(LinkData!$A:$A,LEFT($M8,6),LinkData!G:G),IF(Lookup_Tables!$N$1=3,TEXT(SUMIF(LinkData!$A:$A,LEFT($M8,6),LinkData!O:O)/N8,"0.00%")))) -> 137 | P8: =IF(Lookup_Tables!$N$1=1,TEXT(SUMIF(LinkData!$A:$A,LEFT($M8,6),LinkData!I:I),"#,##0"),IF(Lookup_Tables!$N$1=2,TEXT(SUMIF(LinkData!$A:$A,LEFT($M8,6),LinkData!L:L),"$#,##0"),IF(Lookup_Tables!$N$1=3,TEXT(SUMIF(LinkData!$A:$A,LEFT($M8,6),LinkData!P:P)/N8,"0.00%")))) -> 15 | Q8: =IF(Lookup_Tables!$N$1=1,"",IF(Lookup_Tables!$N$1=2,TEXT(P8/SUMIF(LinkData!$A:$A,LEFT($M8,6),LinkData!G:G),"$#,##0.00"),IF(Lookup_Tables!$N$1=3,TEXT(SUMIF(LinkData!$A:$A,LEFT($M8,6),LinkData!Q:Q)/N8,"0.00%")))) ->  | R8: =IF(Lookup_Tables!$N$1=1,"",IF(Lookup_Tables!$N$1=2,"",IF(Lookup_Tables!$N$1=3,TEXT(SUMIF(LinkData!$A:$A,LEFT($M8,6),LinkData!R:R)/N8,"0.00%")))) ->  | W8: =N13/1 -> 250
M9: Team C: Mideast | N9: =TEXT(IF(Lookup_Tables!$N$1=1,SUMIF(LinkData!$A:$A,LEFT($M9,6),LinkData!G:G),IF(Lookup_Tables!$N$1=2,SUMIF(LinkData!$A:$A,LEFT($M9,6),LinkData!J:J),IF(Lookup_Tables!$N$1=3,SUMIF(LinkData!$A:$A,LEFT($M9,6),LinkData!S:S)))),"#,##0") -> 152 | O9: =IF(Lookup_Tables!$N$1=1,TEXT(SUMIF(LinkData!$A:$A,LEFT($M9,6),LinkData!H:H),"#,##0"),IF(Lookup_Tables!$N$1=2,N9/SUMIF(LinkData!$A:$A,LEFT($M9,6),LinkData!G:G),IF(Lookup_Tables!$N$1=3,TEXT(SUMIF(LinkData!$A:$A,LEFT($M9,6),LinkData!O:O)/N9,"0.00%")))) -> 138 | P9: =IF(Lookup_Tables!$N$1=1,TEXT(SUMIF(LinkData!$A:$A,LEFT($M9,6),LinkData!I:I),"#,##0"),IF(Lookup_Tables!$N$1=2,TEXT(SUMIF(LinkData!$A:$A,LEFT($M9,6),LinkData!L:L),"$#,##0"),IF(Lookup_Tables!$N$1=3,TEXT(SUMIF(LinkData!$A:$A,LEFT($M9,6),LinkData!P:P)/N9,"0.00%")))) -> 15 | Q9: =IF(Lookup_Tables!$N$1=1,"",IF(Lookup_Tables!$N$1=2,TEXT(P9/SUMIF(LinkData!$A:$A,LEFT($M9,6),LinkData!G:G),"$#,##0.00"),IF(Lookup_Tables!$N$1=3,TEXT(SUMIF(LinkData!$A:$A,LEFT($M9,6),LinkData!Q:Q)/N9,"0.00%")))) ->  | R9: =IF(Lookup_Tables!$N$1=1,"",IF(Lookup_Tables!$N$1=2,"",IF(Lookup_Tables!$N$1=3,TEXT(SUMIF(LinkData!$A:$A,LEFT($M9,6),LinkData!R:R)/N9,"0.00%")))) ->  | W9: =N12/1 -> 154
M10: Team D: New England | N10: =TEXT(IF(Lookup_Tables!$N$1=1,SUMIF(LinkData!$A:$A,LEFT($M10,6),LinkData!G:G),IF(Lookup_Tables!$N$1=2,SUMIF(LinkData!$A:$A,LEFT($M10,6),LinkData!J:J),IF(Lookup_Tables!$N$1=3,SUMIF(LinkData!$A:$A,LEFT($M10,6),LinkData!S:S)))),"#,##0") -> 180 | O10: =IF(Lookup_Tables!$N$1=1,TEXT(SUMIF(LinkData!$A:$A,LEFT($M10,6),LinkData!H:H),"#,##0"),IF(Lookup_Tables!$N$1=2,N10/SUMIF(LinkData!$A:$A,LEFT($M10,6),LinkData!G:G),IF(Lookup_Tables!$N$1=3,TEXT(SUMIF(LinkData!$A:$A,LEFT($M10,6),LinkData!O:O)/N10,"0.00%")))) -> 163 | P10: =IF(Lookup_Tables!$N$1=1,TEXT(SUMIF(LinkData!$A:$A,LEFT($M10,6),LinkData!I:I),"#,##0"),IF(Lookup_Tables!$N$1=2,TEXT(SUMIF(LinkData!$A:$A,LEFT($M10,6),LinkData!L:L),"$#,##0"),IF(Lookup_Tables!$N$1=3,TEXT(SUMIF(LinkData!$A:$A,LEFT($M10,6),LinkData!P:P)/N10,"0.00%")))) -> 18 | Q10: =IF(Lookup_Tables!$N$1=1,"",IF(Lookup_Tables!$N$1=2,TEXT(P10/SUMIF(LinkData!$A:$A,LEFT($M10,6),LinkData!G:G),"$#,##0.00"),IF(Lookup_Tables!$N$1=3,TEXT(SUMIF(LinkData!$A:$A,LEFT($M10,6),LinkData!Q:Q)/N10,"0.00%")))) ->  | R10: =IF(Lookup_Tables!$N$1=1,"",IF(Lookup_Tables!$N$1=2,"",IF(Lookup_Tables!$N$1=3,TEXT(SUMIF(LinkData!$A:$A,LEFT($M10,6),LinkData!R:R)/N10,"0.00%")))) ->  | W10: =N11/1 -> 214
M11: Team E: Plains | N11: =TEXT(IF(Lookup_Tables!$N$1=1,SUMIF(LinkData!$A:$A,LEFT($M11,6),LinkData!G:G),IF(Lookup_Tables!$N$1=2,SUMIF(LinkData!$A:$A,LEFT($M11,6),LinkData!J:J),IF(Lookup_Tables!$N$1=3,SUMIF(LinkData!$A:$A,LEFT($M11,6),LinkData!S:S)))),"#,##0") -> 214 | O11: =IF(Lookup_Tables!$N$1=1,TEXT(SUMIF(LinkData!$A:$A,LEFT($M11,6),LinkData!H:H),"#,##0"),IF(Lookup_Tables!$N$1=2,N11/SUMIF(LinkData!$A:$A,LEFT($M11,6),LinkData!G:G),IF(Lookup_Tables!$N$1=3,TEXT(SUMIF(LinkData!$A:$A,LEFT($M11,6),LinkData!O:O)/N11,"0.00%")))) -> 194 | P11: =IF(Lookup_Tables!$N$1=1,TEXT(SUMIF(LinkData!$A:$A,LEFT($M11,6),LinkData!I:I),"#,##0"),IF(Lookup_Tables!$N$1=2,TEXT(SUMIF(LinkData!$A:$A,LEFT($M11,6),LinkData!L:L),"$#,##0"),IF(Lookup_Tables!$N$1=3,TEXT(SUMIF(LinkData!$A:$A,LEFT($M11,6),LinkData!P:P)/N11,"0.00%")))) -> 21 | Q11: =IF(Lookup_Tables!$N$1=1,"",IF(Lookup_Tables!$N$1=2,TEXT(P11/SUMIF(LinkData!$A:$A,LEFT($M11,6),LinkData!G:G),"$#,##0.00"),IF(Lookup_Tables!$N$1=3,TEXT(SUMIF(LinkData!$A:$A,LEFT($M11,6),LinkData!Q:Q)/N11,"0.00%")))) ->  | R11: =IF(Lookup_Tables!$N$1=1,"",IF(Lookup_Tables!$N$1=2,"",IF(Lookup_Tables!$N$1=3,TEXT(SUMIF(LinkData!$A:$A,LEFT($M11,6),LinkData!R:R)/N11,"0.00%")))) ->  | W11: =N10/1 -> 180
M12: Team F: Rocky Mountain | N12: =TEXT(IF(Lookup_Tables!$N$1=1,SUMIF(LinkData!$A:$A,LEFT($M12,6),LinkData!G:G),IF(Lookup_Tables!$N$1=2,SUMIF(LinkData!$A:$A,LEFT($M12,6),LinkData!J:J),IF(Lookup_Tables!$N$1=3,SUMIF(LinkData!$A:$A,LEFT($M12,6),LinkData!S:S)))),"#,##0") -> 154 | O12: =IF(Lookup_Tables!$N$1=1,TEXT(SUMIF(LinkData!$A:$A,LEFT($M12,6),LinkData!H:H),"#,##0"),IF(Lookup_Tables!$N$1=2,N12/SUMIF(LinkData!$A:$A,LEFT($M12,6),LinkData!G:G),IF(Lookup_Tables!$N$1=3,TEXT(SUMIF(LinkData!$A:$A,LEFT($M12,6),LinkData!O:O)/N12,"0.00%")))) -> 139 | P12: =IF(Lookup_Tables!$N$1=1,TEXT(SUMIF(LinkData!$A:$A,LEFT($M12,6),LinkData!I:I),"#,##0"),IF(Lookup_Tables!$N$1=2,TEXT(SUMIF(LinkData!$A:$A,LEFT($M12,6),LinkData!L:L),"$#,##0"),IF(Lookup_Tables!$N$1=3,TEXT(SUMIF(LinkData!$A:$A,LEFT($M12,6),LinkData!P:P)/N12,"0.00%")))) -> 15 | Q12: =IF(Lookup_Tables!$N$1=1,"",IF(Lookup_Tables!$N$1=2,TEXT(P12/SUMIF(LinkData!$A:$A,LEFT($M12,6),LinkData!G:G),"$#,##0.00"),IF(Lookup_Tables!$N$1=3,TEXT(SUMIF(LinkData!$A:$A,LEFT($M12,6),LinkData!Q:Q)/N12,"0.00%")))) ->  | R12: =IF(Lookup_Tables!$N$1=1,"",IF(Lookup_Tables!$N$1=2,"",IF(Lookup_Tables!$N$1=3,TEXT(SUMIF(LinkData!$A:$A,LEFT($M12,6),LinkData!R:R)/N12,"0.00%")))) ->  | W12: =N9/1 -> 152
M13: Team G: Southeast | N13: =TEXT(IF(Lookup_Tables!$N$1=1,SUMIF(LinkData!$A:$A,LEFT($M13,6),LinkData!G:G),IF(Lookup_Tables!$N$1=2,SUMIF(LinkData!$A:$A,LEFT($M13,6),LinkData!J:J),IF(Lookup_Tables!$N$1=3,SUMIF(LinkData!$A:$A,LEFT($M13,6),LinkData!S:S)))),"#,##0") -> 250 | O13: =IF(Lookup_Tables!$N$1=1,TEXT(SUMIF(LinkData!$A:$A,LEFT($M13,6),LinkData!H:H),"#,##0"),IF(Lookup_Tables!$N$1=2,N13/SUMIF(LinkData!$A:$A,LEFT($M13,6),LinkData!G:G),IF(Lookup_Tables!$N$1=3,TEXT(SUMIF(LinkData!$A:$A,LEFT($M13,6),LinkData!O:O)/N13,"0.00%")))) -> 225 | P13: =IF(Lookup_Tables!$N$1=1,TEXT(SUMIF(LinkData!$A:$A,LEFT($M13,6),LinkData!I:I),"#,##0"),IF(Lookup_Tables!$N$1=2,TEXT(SUMIF(LinkData!$A:$A,LEFT($M13,6),LinkData!L:L),"$#,##0"),IF(Lookup_Tables!$N$1=3,TEXT(SUMIF(LinkData!$A:$A,LEFT($M13,6),LinkData!P:P)/N13,"0.00%")))) -> 25 | Q13: =IF(Lookup_Tables!$N$1=1,"",IF(Lookup_Tables!$N$1=2,TEXT(P13/SUMIF(LinkData!$A:$A,LEFT($M13,6),LinkData!G:G),"$#,##0.00"),IF(Lookup_Tables!$N$1=3,TEXT(SUMIF(LinkData!$A:$A,LEFT($M13,6),LinkData!Q:Q)/N13,"0.00%")))) ->  | R13: =IF(Lookup_Tables!$N$1=1,"",IF(Lookup_Tables!$N$1=2,"",IF(Lookup_Tables!$N$1=3,TEXT(SUMIF(LinkData!$A:$A,LEFT($M13,6),LinkData!R:R)/N13,"0.00%")))) ->  | W13: =N8/1 -> 152
M14: Team H: Southwest | N14: =TEXT(IF(Lookup_Tables!$N$1=1,SUMIF(LinkData!$A:$A,LEFT($M14,6),LinkData!G:G),IF(Lookup_Tables!$N$1=2,SUMIF(LinkData!$A:$A,LEFT($M14,6),LinkData!J:J),IF(Lookup_Tables!$N$1=3,SUMIF(LinkData!$A:$A,LEFT($M14,6),LinkData!S:S)))),"#,##0") -> 123 | O14: =IF(Lookup_Tables!$N$1=1,TEXT(SUMIF(LinkData!$A:$A,LEFT($M14,6),LinkData!H:H),"#,##0"),IF(Lookup_Tables!$N$1=2,N14/SUMIF(LinkData!$A:$A,LEFT($M14,6),LinkData!G:G),IF(Lookup_Tables!$N$1=3,TEXT(SUMIF(LinkData!$A:$A,LEFT($M14,6),LinkData!O:O)/N14,"0.00%")))) -> 111 | P14: =IF(Lookup_Tables!$N$1=1,TEXT(SUMIF(LinkData!$A:$A,LEFT($M14,6),LinkData!I:I),"#,##0"),IF(Lookup_Tables!$N$1=2,TEXT(SUMIF(LinkData!$A:$A,LEFT($M14,6),LinkData!L:L),"$#,##0"),IF(Lookup_Tables!$N$1=3,TEXT(SUMIF(LinkData!$A:$A,LEFT($M14,6),LinkData!P:P)/N14,"0.00%")))) -> 12 | Q14: =IF(Lookup_Tables!$N$1=1,"",IF(Lookup_Tables!$N$1=2,TEXT(P14/SUMIF(LinkData!$A:$A,LEFT($M14,6),LinkData!G:G),"$#,##0.00"),IF(Lookup_Tables!$N$1=3,TEXT(SUMIF(LinkData!$A:$A,LEFT($M14,6),LinkData!Q:Q)/N14,"0.00%")))) ->  | R14: =IF(Lookup_Tables!$N$1=1,"",IF(Lookup_Tables!$N$1=2,"",IF(Lookup_Tables!$N$1=3,TEXT(SUMIF(LinkData!$A:$A,LEFT($M14,6),LinkData!R:R)/N14,"0.00%")))) ->  | W14: =N7/1 -> 137
